{"text_format":"1","workbook":"xlsx","n_sheets":31,"sheets":["Historical_ISO","Historical_ISO_Period","Historical_SDMX","Historical_SDMX_Period","Historical","Input_ISO","Input_ISO_Period","Input_SDMX","Input_SDMX_Period","Entries","Output_ISO_csv","Output_SDMX_csv","Output_SDMX_long_complete","Mapping_Products_Flows","Parameters","Parameter_mapping","Logs","Mapping_countries","Param_Menu","Param_Questionnaire","Param_Multilanguage","Menu","Instructions","TemplateTS1to2","TemplateRemarks","CheckReport","TemplateGraphs","Param_Sheets","Param_Sheets_Templates","Param_Tables","Param_Tables_Templates"],"not_rendered":{"charts":1,"images":0,"macros":1,"external_links":0,"defined_names":47,"comments":0,"pivot_tables":1},"unopened":[],"bounds":{"document_bytes":16777216,"sheet_cells":100000,"rows_first":2000,"rows_last":500,"rows_between":2000,"halvings":0,"cell_chars":16384,"cell_head_chars":4096},"cells_cut":0,"cells_raw":0,"read":"whole","date_system":"1900"}

{"sheet":"Historical_ISO","index":0,"n_rows":1,"n_cols":11,"rows_kept":1,"cut":false,"hidden":true,"merged":[]}
["COUNTRY","QUEST","PRODUCT","DATATYPE","ITEM1","ITEM2","TIME","VALUE","OBSERVATION","CONFIDENTIALITY","Record"]

{"sheet":"Historical_ISO_Period","index":1,"n_rows":1,"n_cols":1,"rows_kept":1,"cut":false,"hidden":true,"merged":[]}
["TIME"]

{"sheet":"Historical_SDMX","index":2,"n_rows":1,"n_cols":11,"rows_kept":1,"cut":false,"hidden":true,"merged":[]}
["REF_AREA","DATAFLOW","PRODUCT","DATATYPE","ITEM1","ITEM2","TIME","VALUE","OBSERVATION","CONFIDENTIALITY","Record"]

{"sheet":"Historical_SDMX_Period","index":3,"n_rows":1,"n_cols":1,"rows_kept":1,"cut":false,"hidden":true,"merged":[]}
["TIME"]

{"sheet":"Historical","index":4,"n_rows":1,"n_cols":11,"rows_kept":1,"cut":false,"hidden":true,"merged":[]}
["COUNTRY","QUEST","PRODUCT","DATATYPE","ITEM1","ITEM2","TIME","VALUE","OBSERVATION","CONFIDENTIALITY","KEYREC"]

{"sheet":"Input_ISO","index":5,"n_rows":1,"n_cols":11,"rows_kept":1,"cut":false,"hidden":true,"merged":[]}
["COUNTRY","QUEST","PRODUCT","DATATYPE","ITEM1","ITEM2","TIME","VALUE","OBSERVATION","CONFIDENTIALITY","Record"]

{"sheet":"Input_ISO_Period","index":6,"n_rows":1,"n_cols":1,"rows_kept":1,"cut":false,"hidden":true,"merged":[]}
["TIME"]

{"sheet":"Input_SDMX","index":7,"n_rows":1,"n_cols":11,"rows_kept":1,"cut":false,"hidden":true,"merged":[]}
["REF_AREA","DATAFLOW","PRODUCT","DATATYPE","ITEM1","ITEM2","TIME","VALUE","OBSERVATION","CONFIDENTIALITY","Record"]

{"sheet":"Input_SDMX_Period","index":8,"n_rows":1,"n_cols":1,"rows_kept":1,"cut":false,"hidden":true,"merged":[]}
["TIME"]

{"sheet":"Entries","index":9,"n_rows":1,"n_cols":11,"rows_kept":1,"cut":false,"hidden":true,"merged":[]}
["COUNTRY","QUEST","PRODUCT","DATATYPE","ITEM1","ITEM2","TIME","VALUE","OBSERVATION","CONFIDENTIALITY","KEYREC"]

{"sheet":"Output_ISO_csv","index":10,"n_rows":1,"n_cols":1,"rows_kept":1,"cut":false,"hidden":true,"merged":[]}
["Output"]

{"sheet":"Output_SDMX_csv","index":11,"n_rows":1,"n_cols":1,"rows_kept":1,"cut":false,"hidden":true,"merged":[]}
["Output"]

{"sheet":"Output_SDMX_long_complete","index":12,"n_rows":1,"n_cols":22,"rows_kept":1,"cut":false,"hidden":true,"merged":[]}
["DATAFLOW","QUEST_SOURCE","REF_AREA","FREQ","ENERGY_PRODUCT","MAIN_FLOW","FLOW_BREAKDOWN","PLANT_TECH","PLANT_TYPE","STOCKS","INFRASTRUCTURE_IND","VIS_A_VIS_AREA","MEASURE_VALUE_TYPE","FACILITY_ID","TIME_PERIOD","OBS_VALUE","UNIT_MEASURE","OBS_STATUS","CONF_STATUS","COMMENT_OBS","FACILITY_TYPE","FACILITY_NAME"]

{"sheet":"Mapping_Products_Flows","index":13,"n_rows":30,"n_cols":16,"rows_kept":30,"cut":false,"hidden":true,"merged":[]}
["DATATYPE","PRODUCT","ITEM1","ITEM2","ENERGY_PRODUCT","MAIN_FLOW","FLOW_BREAKDOWN","PLANT_TECH","PLANT_TYPE","STOCKS","INFRASTRUCTURE_IND","VIS_A_VIS_AREA","MEASURE_VALUE_TYPE","FACILITY_ID","UNIT_MEASURE","ISO_EXCLUSION"]
["BALANCE","ELECTR","NELEPROD",null,"E7000","NETPROD","_Z","_T","_T","_Z","_Z","_Z","ENERGY","_Z","GWH","y"]
["BALANCE","NUCLEAR","NELEPROD",null,"E7000","NETPROD","_Z","NUCLEAR","_T","_Z","_Z","_Z","ENERGY","_Z","GWH","y"]
["BALANCE","COMBFUEL","NELEPROD",null,"E7000","NETPROD","_Z","COMBFUEL","_T","_Z","_Z","_Z","ENERGY","_Z","GWH","y"]
["BALANCE","COAL","NELEPROD",null,"E7000","NETPROD","_Z","COMBCOAL","_T","_Z","_Z","_Z","ENERGY","_Z","GWH","y"]
["BALANCE","OIL","NELEPROD",null,"E7000","NETPROD","_Z","COMBOIL","_T","_Z","_Z","_Z","ENERGY","_Z","GWH","y"]
["BALANCE","NATGAS","NELEPROD",null,"E7000","NETPROD","_Z","COMBGAS","_T","_Z","_Z","_Z","ENERGY","_Z","GWH","y"]
["BALANCE","COMBREN","NELEPROD",null,"E7000","NETPROD","_Z","COMBREN","_T","_Z","_Z","_Z","ENERGY","_Z","GWH","y"]
["BALANCE","COMBNREN","NELEPROD",null,"E7000","NETPROD","_Z","COMBOTH","_T","_Z","_Z","_Z","ENERGY","_Z","GWH","y"]
["BALANCE","HYDRO","NELEPROD",null,"E7000","NETPROD","_Z","HYDRO","_T","_Z","_Z","_Z","ENERGY","_Z","GWH","y"]
["BALANCE","HYDPURE","NELEPROD",null,"E7000","NETPROD","_Z","PURHYDRO","_T","_Z","_Z","_Z","ENERGY","_Z","GWH","y"]
["BALANCE","HYDMIXED","NELEPROD",null,"E7000","NETPROD","_Z","MIXHYDRO","_T","_Z","_Z","_Z","ENERGY","_Z","GWH","y"]
["BALANCE","HYDPUMP","NELEPROD",null,"E7000","NETPROD","_Z","HYDPUMP","_T","_Z","_Z","_Z","ENERGY","_Z","GWH","y"]
["BALANCE","WIND","NELEPROD",null,"E7000","NETPROD","_Z","WIND","_T","_Z","_Z","_Z","ENERGY","_Z","GWH","y"]
["BALANCE","WINDON","NELEPROD",null,"E7000","NETPROD","_Z","WINDON","_T","_Z","_Z","_Z","ENERGY","_Z","GWH","y"]
["BALANCE","WINDOFF","NELEPROD",null,"E7000","NETPROD","_Z","WINDOFF","_T","_Z","_Z","_Z","ENERGY","_Z","GWH","y"]
["BALANCE","SOLAR","NELEPROD",null,"E7000","NETPROD","_Z","SOLAR","_T","_Z","_Z","_Z","ENERGY","_Z","GWH","y"]
["BALANCE","SOLARPV","NELEPROD",null,"E7000","NETPROD","_Z","SOLARPV","_T","_Z","_Z","_Z","ENERGY","_Z","GWH","y"]
["BALANCE","SOLARTH","NELEPROD",null,"E7000","NETPROD","_Z","SOLARTH","_T","_Z","_Z","_Z","ENERGY","_Z","GWH","y"]
["BALANCE","GEOTHERM","NELEPROD",null,"E7000","NETPROD","_Z","GEOTHERM","_T","_Z","_Z","_Z","ENERGY","_Z","GWH","y"]
["BALANCE","OTHERREN","NELEPROD",null,"E7000","NETPROD","_Z","TIDE","_T","_Z","_Z","_Z","ENERGY","_Z","GWH","y"]
["BALANCE","NONSPEC","NELEPROD",null,"E7000","NETPROD","_Z","OTHGEN","_T","_Z","_Z","_Z","ENERGY","_Z","GWH","y"]
["BALANCE","ELECTR","TOTIMPSB",null,"E7000","IMPORTS","TOTIMPSB","_Z","_T","_Z","_Z","_Z","ENERGY","_Z","GWH","y"]
["BALANCE","ELECTR","TOTEUIMPS",null,"E7000","IMPORTS","_Z","_Z","_T","_Z","_Z","B0","ENERGY","_Z","GWH","y"]
["BALANCE","ELECTR","TOTEXPSB",null,"E7000","EXPORTS","TOTEXPSB","_Z","_T","_Z","_Z","_Z","ENERGY","_Z","GWH","y"]
["BALANCE","ELECTR","TOTEUEXPS",null,"E7000","EXPORTS","_Z","_Z","_T","_Z","_Z","B0","ENERGY","_Z","GWH","y"]
["BALANCE","ELECTR","EPUMPST",null,"E7000","ENERGUSE","PUMPST","_Z","_T","_Z","_Z","_Z","ENERGY","_Z","GWH","y"]
["BALANCE","ELECTR","DISTLOSS",null,"E7000","LOSSES","DISTLOSS","_Z","_T","_Z","_Z","_Z","ENERGY","_Z","GWH","y"]
["BALANCE","ELECTR","TFCCALC",null,"E7000","ENERGUSE","FINCONSC","_Z","_T","_Z","_Z","_Z","ENERGY","_Z","GWH","y"]
[null,null,null,null,"_Z","_Z","_Z","_Z","_Z","_Z","_Z","_Z","_Z","_Z","_Z","y"]

{"sheet":"Parameters","index":14,"n_rows":21,"n_cols":7,"rows_kept":21,"cut":false,"hidden":true,"merged":[]}
["Element","Type","PosType","Position",null,"DataStart","P2"]
["QUEST_SOURCE","DIM","COLUMN","B",null,"DataEnd","P100000"]
["FREQ","DIM","COLUMN","D",null,"SkipIncompleteKeys","true"]
["REF_AREA","DIM","COLUMN","C",null,"formatValues","actualValue"]
["ENERGY_PRODUCT","DIM","COLUMN","E"]
["MAIN_FLOW","DIM","COLUMN","F"]
["FLOW_BREAKDOWN","DIM","COLUMN","G"]
["PLANT_TECH","DIM","COLUMN","H"]
["PLANT_TYPE","DIM","COLUMN","I"]
["STOCKS","DIM","COLUMN","J"]
["INFRASTRUCTURE_IND","DIM","COLUMN","K"]
["VIS_A_VIS_AREA","DIM","COLUMN","L"]
["MEASURE_VALUE_TYPE","DIM","COLUMN","M"]
["TIME_PERIOD","DIM","COLUMN","O"]
["FACILITY_ID","DIM","COLUMN","N"]
["UNIT_MEASURE","DIM","COLUMN","Q"]
["OBS_STATUS","ATT","COLUMN","R"]
["CONF_STATUS","ATT","COLUMN","S"]
["COMMENT_OBS","ATT","SKIP"]
["FACILITY_TYPE","ATT","SKIP"]
["FACILITY_NAME","ATT","SKIP"]

{"sheet":"Parameter_mapping","index":15,"n_rows":2,"n_cols":2,"rows_kept":2,"cut":false,"hidden":true,"merged":[]}
["Data sheet","Parameter sheet"]
["Output_SDMX_long_complete","Parameters"]

{"sheet":"Logs","index":16,"n_rows":1,"n_cols":7,"rows_kept":1,"cut":false,"hidden":true,"merged":[]}
["Date","Module","Function","Param","Return","ErrorCode","Description"]

{"sheet":"Mapping_countries","index":17,"n_rows":73,"n_cols":4,"rows_kept":73,"cut":false,"hidden":true,"merged":[]}
["Official","IEA","EUROSTAT","IEA-ISO"]
["Albania","ALBANIA","AL","AL"]
["Argentina","ARGENTINA","AR","AR"]
["Armenia","ARMENIA","AM","AM"]
["Australia","AUSTRALI","AU","AU"]
["Austria","AUSTRIA","AT","AT"]
["Azerbaijan","AZERBAIJAN","AZ","AZ"]
["Belarus","BELARUS","BY","BY"]
["Belgium","BELGIUM","BE","BE"]
["Bosnia and Herzegovina","BOSNIAHERZ","BA","BA"]
["Brazil","BRAZIL","BR","BR"]
["Bulgaria","BULGARIA","BG","BG"]
["Canada","CANADA","CA","CA"]
["Chile","CHILE","CL","CL"]
["China, People's Republic of","CHINA","CN","CN"]
["Colombia","COLOMBIA","CO","CO"]
["Costa Rica","COSTARICA","CR","CR"]
["Croatia","CROATIA","HR","HR"]
["Cyprus","CYPRUS","CY","CY"]
["Czech Republic","CZECH","CZ","CZ"]
["Denmark","DENMARK","DK","DK"]
["Egypt","EGYPT","EG","EG"]
["Estonia","ESTONIA","EE","EE"]
["Finland","FINLAND","FI","FI"]
["France","FRANCE","FR","FR"]
["Georgia","GEORGIA","GE","GE"]
["Germany","GERMANY","DE","DE"]
["Greece","GREECE","GR","GR"]
["Hungary","HUNGARY","HU","HU"]
["Iceland","ICELAND","IS","IS"]
["Ireland","IRELAND","IE","IE"]
["India","INDIA","IN","IN"]
["Indonesia","INDONESIA","ID","ID"]
["Israel","ISRAEL","IL","IL"]
["Italy","ITALY","IT","IT"]
["Japan","JAPAN","JP","JP"]
["Kazakhstan","KAZAKHSTAN","KZ","KZ"]
["Korea","KOREA","KR","KR"]
["Kosovo* (under UNSCR 1244/99)","KOSOVO","XK","XK"]
["Kyrgyzstan","KYRGYZSTAN","KG","KG"]
["Latvia","LATVIA","LV","LV"]
["Liechtenstein","LIECHTEN","LI","LI"]
["Lithuania","LITHUANIA","LT","LT"]
["Luxembourg","LUXEMBOU","LU","LU"]
["Malta","MALTA","MT","MT"]
["Mexico","MEXICO","MX","MX"]
["Moldova","MOLDOVA","MD","MD"]
["Montenegro","MONTENEGRO","ME","ME"]
["Morocco","MOROCCO","MA","MA"]
["Netherlands","NETHLAND","NL","NL"]
["New Zealand","NZ","NZ","NZ"]
["North Macedonia","NORTHMACED","MK","MK"]
["Norway","NORWAY","NO","NO"]
["Peru","PERU","PE","PE"]
["Poland","POLAND","PL","PL"]
["Portugal","PORTUGAL","PT","PT"]
["Romania","ROMANIA","RO","RO"]
["Russia","RUSSIA","RU","RU"]
["Serbia","SERBIA","RS","RS"]
["Singapore","SINGAPORE","SG","SG"]
["Slovak Republic","SLOVAKIA","SK","SK"]
["Slovenia","SLOVENIA","SI","SI"]
["South Africa","SOUTHAFRIC","ZA","ZA"]
["Spain","SPAIN","ES","ES"]
["Sweden","SWEDEN","SE","SE"]
["Switzerland","SWITLAND","CH","CH"]
["Tajikistan","TAJIKISTAN","TJ","TJ"]
["Thailand","THAILAND","TH","TH"]
["Tunisia","TUNISIA","TN","TN"]
["Türkiye","TURKEY","TR","TR"]
["Ukraine","UKRAINE","UA","UA"]
["United Kingdom","UK","GB","GB"]
["United States","USA","US","US"]

{"sheet":"Param_Menu","index":18,"n_rows":43,"n_cols":8,"rows_kept":43,"cut":false,"hidden":true,"merged":[]}
[null,"Selection",null,"Sep"]
["Format",1,null,",",null,null,"Year","Year shown in the drop-down box with the reference period (in Menu sheet)"]
["File Import","M:\\Data\\Energy - LOT2\\Development\\Questionnaires\\Monthly\\Monthly ELEC\\Developed quest\\test.csv",null,null,null,null,{"$f":"A8","v":2024}]
["File Export","D:\\ARTEMIS INFO. MGMT\\Energy - Lot 2\\Development\\Questionnaires\\Monthly ELEC\\Developed quest\\Albania_SDMX_2024-06-09_10-53.csv",null,null,null,null,{"$f":"A8+1","v":2025}]
["File Import historical","D:\\ARTEMIS INFO. MGMT\\Energy - Lot 2\\Development\\Questionnaires\\Monthly ELEC\\Developed quest\\Albania_SDMX_2024-06-09_10-53.csv",null,null,null,null,{"$f":"A8+2","v":2026}]
[]
["Year","Month","Period","Selected"]
[2024,"M01",{"$f":"PeriodsToLoad[[#This Row],[Year]]&PeriodsToLoad[[#This Row],[Month]]","v":"2024M01"},0]
[{"$f":"$A$8","v":2024},"M02",{"$f":"PeriodsToLoad[[#This Row],[Year]]&PeriodsToLoad[[#This Row],[Month]]","v":"2024M02"},0]
[2024,"M03",{"$f":"PeriodsToLoad[[#This Row],[Year]]&PeriodsToLoad[[#This Row],[Month]]","v":"2024M03"},0]
[2024,"M04",{"$f":"PeriodsToLoad[[#This Row],[Year]]&PeriodsToLoad[[#This Row],[Month]]","v":"2024M04"},0]
[2024,"M05",{"$f":"PeriodsToLoad[[#This Row],[Year]]&PeriodsToLoad[[#This Row],[Month]]","v":"2024M05"},0]
[2024,"M06",{"$f":"PeriodsToLoad[[#This Row],[Year]]&PeriodsToLoad[[#This Row],[Month]]","v":"2024M06"},0]
[2024,"M07",{"$f":"PeriodsToLoad[[#This Row],[Year]]&PeriodsToLoad[[#This Row],[Month]]","v":"2024M07"},0]
[2024,"M08",{"$f":"PeriodsToLoad[[#This Row],[Year]]&PeriodsToLoad[[#This Row],[Month]]","v":"2024M08"},0]
[2024,"M09",{"$f":"PeriodsToLoad[[#This Row],[Year]]&PeriodsToLoad[[#This Row],[Month]]","v":"2024M09"},0]
[2024,"M10",{"$f":"PeriodsToLoad[[#This Row],[Year]]&PeriodsToLoad[[#This Row],[Month]]","v":"2024M10"},0]
[2024,"M11",{"$f":"PeriodsToLoad[[#This Row],[Year]]&PeriodsToLoad[[#This Row],[Month]]","v":"2024M11"},0]
[2024,"M12",{"$f":"PeriodsToLoad[[#This Row],[Year]]&PeriodsToLoad[[#This Row],[Month]]","v":"2024M12"},0]
[{"$f":"$A$8+1","v":2025},"M01",{"$f":"PeriodsToLoad[[#This Row],[Year]]&PeriodsToLoad[[#This Row],[Month]]","v":"2025M01"},0]
[{"$f":"$A$8+1","v":2025},"M02",{"$f":"PeriodsToLoad[[#This Row],[Year]]&PeriodsToLoad[[#This Row],[Month]]","v":"2025M02"},0]
[2025,"M03",{"$f":"PeriodsToLoad[[#This Row],[Year]]&PeriodsToLoad[[#This Row],[Month]]","v":"2025M03"},0]
[2025,"M04",{"$f":"PeriodsToLoad[[#This Row],[Year]]&PeriodsToLoad[[#This Row],[Month]]","v":"2025M04"},0]
[2025,"M05",{"$f":"PeriodsToLoad[[#This Row],[Year]]&PeriodsToLoad[[#This Row],[Month]]","v":"2025M05"},0]
[2025,"M06",{"$f":"PeriodsToLoad[[#This Row],[Year]]&PeriodsToLoad[[#This Row],[Month]]","v":"2025M06"},0]
[2025,"M07",{"$f":"PeriodsToLoad[[#This Row],[Year]]&PeriodsToLoad[[#This Row],[Month]]","v":"2025M07"},0]
[2025,"M08",{"$f":"PeriodsToLoad[[#This Row],[Year]]&PeriodsToLoad[[#This Row],[Month]]","v":"2025M08"},0]
[2025,"M09",{"$f":"PeriodsToLoad[[#This Row],[Year]]&PeriodsToLoad[[#This Row],[Month]]","v":"2025M09"},0]
[2025,"M10",{"$f":"PeriodsToLoad[[#This Row],[Year]]&PeriodsToLoad[[#This Row],[Month]]","v":"2025M10"},0]
[2025,"M11",{"$f":"PeriodsToLoad[[#This Row],[Year]]&PeriodsToLoad[[#This Row],[Month]]","v":"2025M11"},0]
[2025,"M12",{"$f":"PeriodsToLoad[[#This Row],[Year]]&PeriodsToLoad[[#This Row],[Month]]","v":"2025M12"},0]
[{"$f":"$A$8+2","v":2026},"M01",{"$f":"PeriodsToLoad[[#This Row],[Year]]&PeriodsToLoad[[#This Row],[Month]]","v":"2026M01"},1]
[{"$f":"$A$8+2","v":2026},"M02",{"$f":"PeriodsToLoad[[#This Row],[Year]]&PeriodsToLoad[[#This Row],[Month]]","v":"2026M02"},0]
[2026,"M03",{"$f":"PeriodsToLoad[[#This Row],[Year]]&PeriodsToLoad[[#This Row],[Month]]","v":"2026M03"},0]
[2026,"M04",{"$f":"PeriodsToLoad[[#This Row],[Year]]&PeriodsToLoad[[#This Row],[Month]]","v":"2026M04"},0]
[2026,"M05",{"$f":"PeriodsToLoad[[#This Row],[Year]]&PeriodsToLoad[[#This Row],[Month]]","v":"2026M05"},0]
[2026,"M06",{"$f":"PeriodsToLoad[[#This Row],[Year]]&PeriodsToLoad[[#This Row],[Month]]","v":"2026M06"},0]
[2026,"M07",{"$f":"PeriodsToLoad[[#This Row],[Year]]&PeriodsToLoad[[#This Row],[Month]]","v":"2026M07"},0]
[2026,"M08",{"$f":"PeriodsToLoad[[#This Row],[Year]]&PeriodsToLoad[[#This Row],[Month]]","v":"2026M08"},0]
[2026,"M09",{"$f":"PeriodsToLoad[[#This Row],[Year]]&PeriodsToLoad[[#This Row],[Month]]","v":"2026M09"},0]
[2026,"M10",{"$f":"PeriodsToLoad[[#This Row],[Year]]&PeriodsToLoad[[#This Row],[Month]]","v":"2026M10"},0]
[2026,"M11",{"$f":"PeriodsToLoad[[#This Row],[Year]]&PeriodsToLoad[[#This Row],[Month]]","v":"2026M11"},0]
[2026,"M12",{"$f":"PeriodsToLoad[[#This Row],[Year]]&PeriodsToLoad[[#This Row],[Month]]","v":"2026M12"},0]

{"sheet":"Param_Questionnaire","index":19,"n_rows":73,"n_cols":18,"rows_kept":73,"cut":false,"hidden":true,"merged":[]}
["Version","IEA",null,"Eurostat","IEA","Language",null,"FormatNormal","FormatConfidential","FormatConfidential2","FormatEstimated","FormatNotAvailable","FormatDataCannotExist","FormatNotSignificant","FormatLowReliability","FormatDefinitionDiff","FormatTSBreak","FormatProvisional"]
["Questionnaire","MES",null,"Albania","Albania","English",0,1234567.8899999999,0,1234.56789,1234567.8899999999,1234567.8899999999,1234567.8899999999,1234567.8899999999,1234567.8899999999,1234567.8899999999,1234567.8899999999,1234567.8899999999]
["DATAFLOW","ESTAT:ENERGY_ELECT3_M(1.0)",null,"Austria","Argentina","French",1,1234567.8899999999,0,1234.56789,1234567.8899999999,1234567.8899999999,1234567.8899999999,1234567.8899999999,1234567.8899999999,1234567.8899999999,1234567.8899999999,1234567.8899999999]
["QUEST_SOURCE","M_ELECT",null,"Belgium","Armenia","German",2,1234567.8899999999,0,1234.56789,1234567.8899999999,1234567.8899999999,1234567.8899999999,1234567.8899999999,1234567.8899999999,1234567.8899999999,1234567.8899999999,1234567.8899999999]
["FREQ","M",null,"Bosnia and Herzegovina","Australia","Bulgarian",3,1234567.8899999999,0,1234.56789,1234567.8899999999,1234567.8899999999,1234567.8899999999,1234567.8899999999,1234567.8899999999,1234567.8899999999,1234567.8899999999,1234567.8899999999]
["CountryName",{"$f":"Menu!D9","v":"Australia"},null,"Bulgaria","Austria","Spanish",4,1234567.8899999999,0,1234.56789,1234567.8899999999,1234567.8899999999,1234567.8899999999,1234567.8899999999,1234567.8899999999,1234567.8899999999,1234567.8899999999,1234567.8899999999]
["CountryIEA",{"$f":"VLOOKUP(CountryName, Mapping_countries[], 2, 0)","v":"AUSTRALI"},null,"Croatia","Azerbaijan","Czech",5,1234567.8899999999,0,1234.56789,1234567.8899999999,1234567.8899999999,1234567.8899999999,1234567.8899999999,1234567.8899999999,1234567.8899999999,1234567.8899999999,1234567.8899999999]
["CountryEurostat",{"$f":"VLOOKUP(CountryName, Mapping_countries[], 3, 0)","v":"AU"},null,"Cyprus","Belarus","Danish",6,1234567.8899999999,0,1234.56789,1234567.8899999999,1234567.8899999999,1234567.8899999999,1234567.8899999999,1234567.8899999999,1234567.8899999999,1234567.8899999999,1234567.8899999999]
["Language",{"$f":"Menu!D7","v":"English"},null,"Czech Republic","Belgium","Estonian",null,null,null,null,"e","o","m","n","u","d","b","p"]
["PeriodSelected",{"$f":"Menu!C13","v":2026},null,"Denmark","Bosnia and Herzegovina","Greek"]
["Data Format",{"$f":"IF(Param_Menu!B2=1, \"ISO\", \"SDMX\")","v":"ISO"},null,"Estonia","Brazil","Croatian"]
["FormatError","aaa",null,"Finland","Bulgaria","Italian"]
["FormatWarning","aaa",null,"France","Canada","Latvian"]
["FormatRevision","aaa",null,"Georgia","Chile","Lithuanian"]
["FormatLockFormula","aaa",null,"Germany","China, People's Republic of","Hungarian"]
["FormatLockNoFormula",null,null,"Greece","Colombia","Maltese"]
["FormatEmpty",null,null,"Hungary","Costa Rica","Dutch"]
["NbDecimal",3,null,"Iceland","Croatia","Polish"]
["FormatVoluntary","aaa",null,"Ireland","Cyprus","Portuguese"]
["FormatFormula","aaa",null,"Italy","Czech Republic","Romanian"]
[null,null,null,"Kosovo* (under UNSCR 1244/99)","Denmark","Slovak"]
[null,null,null,"Latvia","Egypt","Slovenian"]
["SaveDone",false,null,"Liechtenstein","Estonia","Finnish"]
[null,null,null,"Lithuania","Finland","Swedish"]
[null,null,null,"Luxembourg","France","Russian"]
[null,null,null,"Malta","Georgia"]
[null,null,null,"Moldova","Germany"]
["Test Value",9.9,null,"Montenegro","Greece"]
["CheckTolerance",0.1,null,"Netherlands","Hungary"]
["AllowConfidential",0,null,"North Macedonia","Iceland"]
["AllowDataCannotExist",1,null,"Norway","Ireland"]
["Display0",0,null,"Poland","India"]
["ShowFlags",true,null,"Portugal","Indonesia"]
["ShowChecks",true,null,"Romania","Israel"]
["ShowRevisions",true,null,"Serbia","Italy"]
[null,null,null,"Slovak Republic","Japan"]
[null,null,null,"Slovenia","Kazakhstan"]
[null,null,null,"Spain","Korea"]
[null,null,null,"Sweden","Kosovo* (under UNSCR 1244/99)"]
[null,null,null,"Switzerland","Kyrgyzstan"]
[null,null,null,"Türkiye","Latvia"]
[null,null,null,"Ukraine","Liechtenstein"]
[null,null,null,"United Kingdom","Lithuania"]
[null,null,null,null,"Luxembourg"]
[null,null,null,null,"Malta"]
[null,null,null,null,"Mexico"]
[null,null,null,null,"Moldova"]
[null,null,null,null,"Montenegro"]
[null,null,null,null,"Morocco"]
[null,null,null,null,"Netherlands"]
[null,null,null,null,"New Zealand"]
[null,null,null,null,"North Macedonia"]
[null,null,null,null,"Norway"]
[null,null,null,null,"Peru"]
[null,null,null,null,"Poland"]
[null,null,null,null,"Portugal"]
[null,null,null,null,"Romania"]
[null,null,null,null,"Russia"]
[null,null,null,null,"Serbia"]
[null,null,null,null,"Singapore"]
[null,null,null,null,"Slovak Republic"]
[null,null,null,null,"Slovenia"]
[null,null,null,null,"South Africa"]
[null,null,null,null,"Spain"]
[null,null,null,null,"Sweden"]
[null,null,null,null,"Switzerland"]
[null,null,null,null,"Tajikistan"]
[null,null,null,null,"Thailand"]
[null,null,null,null,"Tunisia"]
[null,null,null,null,"Türkiye"]
[null,null,null,null,"Ukraine"]
[null,null,null,null,"United Kingdom"]
[null,null,null,null,"United States"]

{"sheet":"Param_Multilanguage","index":20,"n_rows":33,"n_cols":25,"rows_kept":33,"cut":false,"hidden":true,"merged":[]}
["Shortnames","English","French","German","Bulgarian","Spanish","Czech","Danish","Estonian","Greek","Croatian","Italian","Latvian","Lithuanian","Hungarian","Maltese","Dutch","Polish","Portuguese","Romanian","Slovak","Slovenian","Finnish","Swedish","Russian"]
[null,"Monthly Electricity Statistics (GWh)","Monthly Electricity Statistics (GWh)"]
[null,"Total net production","Total net production"]
[null,"Nuclear","Nuclear"]
[null,"Conventional thermal","Conventional thermal"]
[null,"Coal","Coal"]
[null,"Oil","Oil"]
[null,"Natural gas","Natural gas"]
[null,"Combustible renewables","Combustible renewables"]
[null,"Other combustible fuels (non-renewable)","Other combustible fuels (non-renewable)"]
[null,"Hydro","Hydro"]
[null,"Pure hydro","Pure hydro"]
[null,"Mixed hydro","Mixed hydro"]
[null,"Pure pumped storage","Pure pumped storage"]
[null,"Wind","Wind"]
[null,"Onshore","Onshore"]
[null,"Offshore","Offshore"]
[null,"Solar","Solar"]
[null,"Solar photovoltaic","Solar photovoltaic"]
[null,"Solar thermal","Solar thermal"]
[null,"Geothermal","Geothermal"]
[null,"Other renewable sources","Other renewable sources"]
[null,"Not specified","Not specified"]
[null,"Imports","Imports"]
[null,"Of which from the EU","Of which from the EU"]
[null,"Exports","Exports"]
[null,"Of which to the EU","Of which to the EU"]
[null,"Used for pumped storage","Used for pumped storage"]
[null,"Transmission and distribution losses","Transmission and distribution losses"]
[null,"Total consumption (calculated)","Total consumption (calculated)"]
[null,"Table 1: NET ELECTRICITY PRODUCTION (GWh)","Table 1: NET ELECTRICITY PRODUCTION (GWh)"]
[null,"Table 2: SUMMARY OF PRODUCTION AND SUPPLY/CONSUMPTION (CALCULATED) (GWh)","Table 2: SUMMARY OF PRODUCTION AND SUPPLY/CONSUMPTION (CALCULATED) (GWh)"]
[null,"Remarks","Remarks"]

{"sheet":"Menu","index":21,"n_rows":989,"n_cols":34,"rows_kept":989,"cut":false,"hidden":false,"merged":[[9,9,12,12],[18,2,18,8],[1,2,1,8],[2,2,2,8],[10,2,10,8],[14,2,14,8],[3,2,3,8],[6,3,6,4],[8,3,8,4]]}
[]
[null,null,"Monthly Electricity Statistics"]
[null,null,"REPORTING TEMPLATE "]
[null,null,"IEA - Eurostat"]
[null,null,"Prefilled by:"]
[]
[null,null,"Language:","English"]
[]
[null,null,"Country:","Australia"]
[null,null,null,null,null,null,null,null,null,{"$f":"IF(SaveDone,\"If you see a red box on this page, please click the 'Prepare file for transmission' or 'Export data file' button before saving, closing and transmitting the file.\",\"\")","v":""}]
[null,null,"TABLE AND TIMESERIES"]
[]
[null,null,2026]
[]
[null,null,"DATA TRANSFER"]
[]
[]
[]
[null,null,"VALIDATION AND VISUALISATION"]
[]
[null,null,null,null,null,null,"2026M01"]
[]
[]
[]
[null,null,"Version:",null,20260216]
[]
[]
[]
[]
[]
[]
[]
[]
[]
[]
[]
[]
[]
[]
[]
[]
[]
[]
[]
[]
[]
[]
[]
[]
[]
[]
[]
[]
[]
[]
[]
[]
[]
[]
[]
[]
[]
[]
[]
[]
[]
[]
[]
[]
[]
[]
[]
[]
[]
[]
[]
[]
[]
[]
[]
[]
[]
[]
[]
[]
[]
[]
[]
[]
[]
[]
[]
[]
[]
[]
[]
[]
[]
[]
[]
[]
[]
[]
[]
[]
[]
[]
[]
[]
[]
[]
[]
[]
[]
[]
[]
[]
[]
[]
[]
[]
[]
[]
[]
[]
[]
[]
[]
[]
[]
[]
[]
[]
[]
[]
[]
[]
[]
[]
[]
[]
[]
[]
[]
[]
[]
[]
[]
[]
[]
[]
[]
[]
[]
[]
[]
[]
[]
[]
[]
[]
[]
[]
[]
[]
[]
[]
[]
[]
[]
[]
[]
[]
[]
[]
[]
[]
[]
[]
[]
[]
[]
[]
[]
[]
[]
[]
[]
[]
[]
[]
[]
[]
[]
[]
[]
[]
[]
[]
[]
[]
[]
[]
[]
[]
[]
[]
[]
[]
[]
[]
[]
[]
[]
[]
[]
[]
[]
[]
[]
[]
[]
[]
[]
[]
[]
[]
[]
[]
[]
[]
[]
[]
[]
[]
[]
[]
[]
[]
[]
[]
[]
[]
[]
[]
[]
[]
[]
[]
[]
[]
[]
[]
[]
[]
[]
[]
[]
[]
[]
[]
[]
[]
[]
[]
[]
[]
[]
[]
[]
[]
[]
[]
[]
[]
[]
[]
[]
[]
[]
[]
[]
[]
[]
[]
[]
[]
[]
[]
[]
[]
[]
[]
[]
[]
[]
[]
[]
[]
[]
[]
[]
[]
[]
[]
[]
[]
[]
[]
[]
[]
[]
[]
[]
[]
[]
[]
[]
[]
[]
[]
[]
[]
[]
[]
[]
[]
[]
[]
[]
[]
[]
[]
[]
[]
[]
[]
[]
[]
[]
[]
[]
[]
[]
[]
[]
[]
[]
[]
[]
[]
[]
[]
[]
[]
[]
[]
[]
[]
[]
[]
[]
[]
[]
[]
[]
[]
[]
[]
[]
[]
[]
[]
[]
[]
[]
[]
[]
[]
[]
[]
[]
[]
[]
[]
[]
[]
[]
[]
[]
[]
[]
[]
[]
[]
[]
[]
[]
[]
[]
[]
[]
[]
[]
[]
[]
[]
[]
[]
[]
[]
[]
[]
[]
[]
[]
[]
[]
[]
[]
[]
[]
[]
[]
[]
[]
[]
[]
[]
[]
[]
[]
[]
[]
[]
[]
[]
[]
[]
[]
[]
[]
[]
[]
[]
[]
[]
[]
[]
[]
[]
[]
[]
[]
[]
[]
[]
[]
[]
[]
[]
[]
[]
[]
[]
[]
[]
[]
[]
[]
[]
[]
[]
[]
[]
[]
[]
[]
[]
[]
[]
[]
[]
[]
[]
[]
[]
[]
[]
[]
[]
[]
[]
[]
[]
[]
[]
[]
[]
[]
[]
[]
[]
[]
[]
[]
[]
[]
[]
[]
[]
[]
[]
[]
[]
[]
[]
[]
[]
[]
[]
[]
[]
[]
[]
[]
[]
[]
[]
[]
[]
[]
[]
[]
[]
[]
[]
[]
[]
[]
[]
[]
[]
[]
[]
[]
[]
[]
[]
[]
[]
[]
[]
[]
[]
[]
[]
[]
[]
[]
[]
[]
[]
[]
[]
[]
[]
[]
[]
[]
[]
[]
[]
[]
[]
[]
[]
[]
[]
[]
[]
[]
[]
[]
[]
[]
[]
[]
[]
[]
[]
[]
[]
[]
[]
[]
[]
[]
[]
[]
[]
[]
[]
[]
[]
[]
[]
[]
[]
[]
[]
[]
[]
[]
[]
[]
[]
[]
[]
[]
[]
[]
[]
[]
[]
[]
[]
[]
[]
[]
[]
[]
[]
[]
[]
[]
[]
[]
[]
[]
[]
[]
[]
[]
[]
[]
[]
[]
[]
[]
[]
[]
[]
[]
[]
[]
[]
[]
[]
[]
[]
[]
[]
[]
[]
[]
[]
[]
[]
[]
[]
[]
[]
[]
[]
[]
[]
[]
[]
[]
[]
[]
[]
[]
[]
[]
[]
[]
[]
[]
[]
[]
[]
[]
[]
[]
[]
[]
[]
[]
[]
[]
[]
[]
[]
[]
[]
[]
[]
[]
[]
[]
[]
[]
[]
[]
[]
[]
[]
[]
[]
[]
[]
[]
[]
[]
[]
[]
[]
[]
[]
[]
[]
[]
[]
[]
[]
[]
[]
[]
[]
[]
[]
[]
[]
[]
[]
[]
[]
[]
[]
[]
[]
[]
[]
[]
[]
[]
[]
[]
[]
[]
[]
[]
[]
[]
[]
[]
[]
[]
[]
[]
[]
[]
[]
[]
[]
[]
[]
[]
[]
[]
[]
[]
[]
[]
[]
[]
[]
[]
[]
[]
[]
[]
[]
[]
[]
[]
[]
[]
[]
[]
[]
[]
[]
[]
[]
[]
[]
[]
[]
[]
[]
[]
[]
[]
[]
[]
[]
[]
[]
[]
[]
[]
[]
[]
[]
[]
[]
[]
[]
[]
[]
[]
[]
[]
[]
[]
[]
[]
[]
[]
[]
[]
[]
[]
[]
[]
[]
[]
[]
[]
[]
[]
[]
[]
[]
[]
[]
[]
[]
[]
[]
[]
[]
[]
[]
[]
[]
[]
[]
[]
[]
[]
[]
[]
[]
[]
[]
[]
[]
[]
[]
[]
[]
[]
[]
[]
[]
[]
[]
[]
[]
[]
[]
[]
[]
[]
[]
[]
[]
[]
[]
[]
[]
[]
[]
[]
[]
[]
[]
[]
[]
[]
[]
[]
[]
[]
[]
[]
[]
[]
[]
[]
[]
[]
[]
[]
[]
[]
[]
[]
[]
[]
[]
[]
[]
[]
[]
[]
[]
[]
[]
[]
[]
[]
[]
[]
[]
[]
[]
[]
[]
[]
[]
[]
[]
[]
[]
[]
[]
[]
[]
[]
[]
[]
[]
[]
[]
[]
[]
[]
[]
[]
[]
[]
[]
[]
[]
[]
[]
[]
[]
[]
[]
[]
[]
[]
[null,null,null,null,null,null,null,null,null,null,null,null,null,null,null,null,null,null,null,null,null,null,null,null,null,null,null,null,null,null,null,null,null,2020]

{"sheet":"Instructions","index":22,"n_rows":158,"n_cols":5,"rows_kept":158,"cut":false,"hidden":false,"merged":[[157,4,159,5],[149,1,149,5],[151,1,151,5],[152,1,152,5],[153,1,153,5],[155,1,155,5],[119,4,121,5],[139,2,139,5],[140,2,140,5],[141,2,141,5],[142,2,142,5],[96,1,96,5],[97,1,98,5],[99,4,104,5],[105,4,113,5],[114,4,117,5],[61,4,63,5],[76,4,78,5],[80,4,82,5],[86,1,86,5],[95,1,95,5],[46,1,46,5],[49,4,51,5],[53,1,55,5],[57,1,57,5],[58,1,59,5],[1,1,1,5],[2,1,2,5],[5,1,5,5],[10,1,10,5],[11,1,11,5],[12,1,12,5],[13,1,13,5],[18,1,18,5],[19,1,19,5],[21,1,21,5],[15,1,16,5],[23,4,27,5],[29,1,29,5],[65,4,67,5],[69,4,74,5],[144,1,144,5],[47,1,47,5],[84,1,84,5],[85,1,85,5],[88,4,93,5],[123,4,125,5],[127,1,127,5],[128,1,131,5],[30,1,31,5],[33,4,35,5],[37,4,40,5],[42,1,44,5],[146,1,146,5],[147,1,148,5],[133,2,133,5],[134,2,134,5],[135,2,135,5],[136,1,137,1],[136,2,137,5],[138,2,138,5],[145,1,145,5]]}
[]
[null,"Monthly Electricity Statistics"]
[null,"REPORTING TEMPLATE "]
[]
[" "]
[null,"SUPPORT CONTACT"]
[null,"IEA: ",null,"CES@iea.org"]
[null,"EUROSTAT: ",null,"ESTAT-ENERGY-MONTHLY@EC.EUROPA.EU"]
[]
[null,""]
[null,"SUBMISSION INSTRUCTIONS:"]
[null,"Countries reporting to Eurostat should transmit the completed reporting template via the Single Entry Point (SEP) via EDAMIS."]
[null,"https://webgate.ec.europa.eu/edamis4"]
[null,"In EDAMIS, please use dataset ENERGY_ELEC3_M."]
[]
[null,"Countries reporting to the IEA can submit data by exporting and uploading a CSV (IEA codes) to the E-VO platform https://evo.iea.org/ and/or emailing the completed reporting template to the IEA email address listed above."]
[]
[]
[null,"BASIC FUNCTIONS"]
[null,"The instructions below describe the functions of the buttons on the 'Menu' worksheet."]
[]
[null,"The user should select his/her language and reporting country from the drop-down boxes at the top."]
[]
[null,null,null,null,"To be used for reporting data to Eurostat/IEA. The user should select the periods (months and/or years) to be uploaded to the database. If a user modifies data in a timeseries spreadsheet that is outside the 'periods to load', a warning message will appear when the reporting template is saved. The data will be saved in the reporting template, but will not be included in the exported data and will not, therefore, be uploaded to the database.\nThe selection of the periods to load is also used for running the checks included in the reporting template."]
[]
[]
[]
[]
[]
[null,"TABLES section"]
[null,"The reporting period should be selected from the drop-down box. Only one period at a time can be filled in using this option. Please remember to save each table with the save button (top left) before closing the worksheet."]
[]
[]
[null,null,null,null,"Opens the table that contains the table-specific products and flows for the selected reporting period (see above)."]
[]
[]
[]
[null,null,null,null,"Use this worksheet to comment on reported data, for example point out changes in methodology, etc. This information will be part of the uploaded data and will be stored under the period to load."]
[]
[]
[]
[]
[null,"This reporting template uses virtual forms, so all new data in any of the tables needs to be saved, otherwise it will not be stored. Any changes made in a table will not be visible immediately in other linked tables. Each table will need to be either reopened or refreshed (by using the 'Show new data' button in each worksheet)."]
[]
[]
[]
[null,"TIME SERIES section"]
[null,"The user can also enter data in the Time Series worksheets. Using this option allows the user to enter data for several months in a given year. "]
[]
[null,null,null,null,"Each button opens a table containing the table-specific products and flows for 12 months of one year. That is, for the year that was selected in the drop-down box in the TABLES section above."]
[]
[]
[]
[null,"This reporting template uses virtual forms, so all new data (or flags) in any of the tables needs to be saved, otherwise it will not be saved. Any changes made in a table will not be visible immediately in other linked tables. Each table will need to be either reopened or refreshed (by using the 'Show new data' button in each worksheet)."]
[]
[]
[]
[null,"DATA TRANSFER section"]
[null,"Data can be imported to (or exported from) the reporting template via a CSV file. Before clicking the button, the user must select (left of the button) the method of import/export, using either the CSV E-VO (IEA codes) or the SDMX-CSV (Eurostat codes) option."]
[]
[]
[null,null,null,null,"Opens a Windows browser to select the file to be imported. Data can be imported only for the periods which are covered by the questionnaire. If other periods are loaded, the loading will fail."]
[]
[]
[]
[null,null,null,null,"Opens a Windows browser to select where the file should be exported to. Before exporting the data, the user must check that the data which needs to be exported is properly selected via the 'Periods to load' button."]
[]
[]
[]
[null,null,null,null,"This button has to be used when the data is transmitted to Eurostat.\nOnce the reporting template is completed and saved, the user must decide whether to transmit an exported CSV file or the Excel file. If the user opts for the Excel file, it must be prepared for transmission to Eurostat. This button carries out the necessary preparation. Before preparing the data, the user must check that the data which needs to be prepared is properly selected via the 'Periods to load' button. If no period is selected, the transmission will be rejected.\nThen, the user must click the 'Prepare file for transmission' button and can transmit the Excel file to Eurostat."]
[]
[]
[]
[]
[]
[]
[null,null,null,null,"This will load the prefilled data from a CSV file to the reporting template. This data will be stored as 'base data'.\nFunction reserved for Eurostat/IEA."]
[]
[]
[]
[null,null,null,null,"Copies new data to prefilled data in order to have the proper highlighting for revisions. This action should be carried out by countries before starting filling a new period in the reporting template."]
[]
[]
[]
[null,"VALIDATION AND VISUALISATION section"]
[null,"Various graphs are available to visualise the reported data."]
[null,"Integrated checks are also available; these should be run by the user. The reported errors should be corrected before submitting the reporting template."]
[]
[null,null,null,null,"The period for which the checks needs to be launched can be selected via the 'Periods to load' button.\nBefore clicking to 'Run all checks', all worksheets must be closed. If there are worksheets open, a pop-up message will ask the user if open worksheets can be closed without saving. The user has the possibility to select cancel and then save any open worksheets.\nThe checks can then be relaunched. When launched, a separate worksheet will be generated, listing all errors from the selected periods. A filtering option is available in order to filter the results."]
[]
[]
[]
[]
[]
[]
[null,"Time Series / Form editing"]
[null,"The user is able to fill in data via the time series or main table worksheets."]
[null,"Changes are not visible in any other table until data is saved (it may be necessary to close and reopen a worksheet to view newly entered and SAVED data)."]
[]
[null,null,null,null,"This is the working view which must be used to fill-in data for the current cycle (new data and revisions for previous periods). It can also be used as a refresh button in order to reload the data if changes have been made and saved in other tables.\nWhen the user is in the 'Show new data' mode, the words on the button are green.\nIf the user inputs information (data or flags) and then clicks on 'Show new data' or 'Prefilled data', the data which was not saved will be lost."]
[]
[]
[]
[]
[]
[null,null,null,null,"The reporting template will be 'prefilled' with historical, or base data. This button will switch the data in the current table back to the base data. To switch back to any data filled in and saved by the user, the user should click on 'Show new data'.\nWARNING: This view should not be used to fill-in data! Any data should be filled-in in the 'Show new data' view! If the user fills in data while in 'Prefilled data' mode and then saves the form, this will become the working data which will then be visible in the ‘Show new data’ mode.\nWhen the user is in 'Prefilled data' mode, the words on the button are green.\nIf the user inputs information (data or flags) and then clicks on 'Show new data' or 'Prefilled data', the data which was not saved will be lost."]
[]
[]
[]
[]
[]
[]
[]
[]
[null,null,null,null,"Removes all data from the worksheet. If the worksheet is saved at this point, it will be saved blank.\nClicking 'Show new data' before saving will bring back users SAVED data, or clicking 'Prefilled data' will bring back base data."]
[]
[]
[]
[]
[null,null,null,null,"Saves the data filled in the worksheet. Nevertheless, when closing the reporting template itself, the file should also be saved."]
[]
[]
[]
[null,null,null,null,"Closes the worksheet. Any data modified since the last save, will not be saved."]
[]
[]
[]
[null,"Flags"]
[null,"The user may insert or remove flags, for just one cell or a selection of cells. To do this, simply select the cell (or range of cells) and select the appropriate flag.\nIf you wish to see only numeric data, the flags can be hidden in the worksheet by unticking the ‘See flags’ box. If the user inputs flags and then ticks/unticks the 'See flags', 'See checks' or 'See revisions' boxes, the flags which were not saved will be lost."]
[]
[]
[]
[]
[null,"M","Data cannot exist. To be used only when no values are provided."]
[null,"O","Missing value (not available/omitted/not known/not surveyed). To be used only when no values are provided."]
[null,"N","Not significant/negligible. To be used only when a '0' value is provided."]
[null,"C","Confidential value. If the data collection is in the secure environment, the C flag is used when values are provided. If the data collection is in the normal environment, the C flag is used without values."]
[]
[null,"D","Definition differs. To be used only when values are provided. An explanation should be given in the Remarks worksheet."]
[null,"B","Break in time series. To be used only when values are provided. An explanation should be given in the Remarks worksheet."]
[null,"P","Provisional value. To be used only when values are provided and only for the most recent time period."]
[null,"E","Estimated value. To be used only when values are provided."]
[null,"U","Low reliability/uncertain. To be used only when values are provided."]
[]
[null,"Checks and revisions"]
[null,"In the Time Series and Main tables, various conditions are checked. Errors are displayed in bold red, while warnings are displayed in red."]
[null,"Cells highlighted in yellow indicate a revision when compared to the prefilled data."]
[null,"The above-mentioned checks and revisions can be hidden by unticking the 'See checks' and 'See revisions' boxes. If the user inputs flags and then ticks/unticks the 'See flags', 'See checks' or 'See revisions' boxes, the flags which were not saved will be lost."]
[]
[null,"Voluntary data appear in italics."]
[]
[null,"Saving the reporting template"]
[null,"When work is complete and all individual worksheets are saved, the reporting template itself has to be saved before closing it."]
[null,"Do not forget the option \"Prepare file for transmission\", mentioned above, before submitting."]
[]
[null,"Reseting the data"]
[]
[null,null,null,null,"This will replace all working data (inculding any editing of data since the CSV was uploaded) with the original prefilled data ('base data')."]

{"sheet":"TemplateTS1to2","index":23,"n_rows":43,"n_cols":22,"rows_kept":43,"cut":false,"hidden":true,"merged":[[0,10,0,21],[9,10,9,21]]}
["Mode",null,null,null,null,null,null,null,"Monthly Electricity Statistics (GWh)",null,{"$f":"VLOOKUP(I1, LanguageData, MATCH(LanguageChosen, Language[Language],0), FALSE)","v":"Monthly Electricity Statistics (GWh)"}]
["DataType","BALANCE",null,null,null,null,null,null,null,null,"M01","M02","M03","M04","M05","M06","M07","M08","M09","M10","M11","M12"]
["Item2",null,null,null,null,null,null,null,"TimeRow",null,{"$f":"$B$4 & K2","v":"2024M01"},{"$f":"$B$4 & L2","v":"2024M02"},"2024M03","2024M04","2024M05","2024M06","2024M07","2024M08","2024M09","2024M10","2024M11","2024M12"]
["Version",2024,null,null,null,null,null,null,"FormulaRow"]
[null,null,null,null,null,null,null,null,"CheckRow"]
[null,null,null,null,null,null,null,null,"LockedRow"]
[null,null,null,null,null,null,null,null,"EmptyRow"]
[null,null,null,null,null,null,null,null,"VoluntaryRow"]
[]
[null,null,null,null,null,null,null,null,null,null,{"$f":"B4","v":2024}]
["Item1","Product","FormulaCol","CheckCol1","LabelCheckCol1","LockedCol","EmptyCol","VoluntaryCol","Label",{"$f":"CountryName","v":"Australia"},{"$f":"K3","v":"2024M01"},{"$f":"L3","v":"2024M02"},"2024M03","2024M04","2024M05","2024M06","2024M07","2024M08","2024M09","2024M10","2024M11","2024M12"]
[null,null,null,null,null,null,null,null,"Table 1: NET ELECTRICITY PRODUCTION (GWh)",{"$f":"VLOOKUP(I12, LanguageData, MATCH(LanguageChosen, Language[Language],0), FALSE)","v":"Table 1: NET ELECTRICITY PRODUCTION (GWh)"}]
["NELEPROD","ELECTR","IF(sum([Product=NUCLEAR],[Product=COMBFUEL],[Product=HYDRO],[Product=WIND],[Product=SOLAR],[Product=GEOTHERM],[Product=OTHERREN],[Product=NONSPEC])>0,sum([Product=NUCLEAR],[Product=COMBFUEL],[Product=HYDRO],[Product=WIND],[Product=SOLAR],[Product=GEOTHERM],[Product=OTHERREN],[Product=NONSPEC]),\"\")",null,null,1,null,null,"Total net production",{"$f":"VLOOKUP(I13, LanguageData, MATCH(LanguageChosen, Language[Language],0), FALSE)","v":"Total net production"}]
["NELEPROD","NUCLEAR",null,null,null,null,null,null,"Nuclear",{"$f":"VLOOKUP(I14, LanguageData, MATCH(LanguageChosen, Language[Language],0), FALSE)","v":"Nuclear"}]
["NELEPROD","COMBFUEL","IF(sum([Product=COAL],[Product=OIL],[Product=NATGAS],[Product=COMBREN],[Product=COMBNREN])>0,sum([Product=COAL],[Product=OIL],[Product=NATGAS],[Product=COMBREN],[Product=COMBNREN]),\"\")","< sum([Product=COAL],[Product=OIL],[Product=NATGAS],[Product=COMBREN],[Product=COMBNREN])","Conventional thermal cannot be less than\nCoal + Oil + Natural gas + Combustible \nrenewables + Other combustible fuels (non-renewables)",null,null,null,"Conventional thermal",{"$f":"VLOOKUP(I15, LanguageData, MATCH(LanguageChosen, Language[Language],0), FALSE)","v":"Conventional thermal"}]
["NELEPROD","COAL",null,null,null,null,null,null,"Coal",{"$f":"VLOOKUP(I16, LanguageData, MATCH(LanguageChosen, Language[Language],0), FALSE)","v":"Coal"}]
["NELEPROD","OIL",null,null,null,null,null,null,"Oil",{"$f":"VLOOKUP(I17, LanguageData, MATCH(LanguageChosen, Language[Language],0), FALSE)","v":"Oil"}]
["NELEPROD","NATGAS",null,null,null,null,null,null,"Natural gas",{"$f":"VLOOKUP(I18, LanguageData, MATCH(LanguageChosen, Language[Language],0), FALSE)","v":"Natural gas"}]
["NELEPROD","COMBREN",null,null,null,null,null,null,"Combustible renewables",{"$f":"VLOOKUP(I19, LanguageData, MATCH(LanguageChosen, Language[Language],0), FALSE)","v":"Combustible renewables"}]
["NELEPROD","COMBNREN",null,null,null,null,null,null,"Other combustible fuels (non-renewable)",{"$f":"VLOOKUP(I20, LanguageData, MATCH(LanguageChosen, Language[Language],0), FALSE)","v":"Other combustible fuels (non-renewable)"}]
["NELEPROD","HYDRO","IF(sum([Product=HYDPURE],[Product=HYDMIXED],[Product=HYDPUMP])>0,sum([Product=HYDPURE],[Product=HYDMIXED],[Product=HYDPUMP]),\"\")","< sum([Product=HYDPURE],[Product=HYDMIXED],[Product=HYDPUMP])","Hydro cannot be less than Pure \nhydro + Mixed hydro + Pure pumped storage",null,null,null,"Hydro",{"$f":"VLOOKUP(I21, LanguageData, MATCH(LanguageChosen, Language[Language],0), FALSE)","v":"Hydro"}]
["NELEPROD","HYDPURE",null,null,null,null,null,null,"Pure hydro",{"$f":"VLOOKUP(I22, LanguageData, MATCH(LanguageChosen, Language[Language],0), FALSE)","v":"Pure hydro"}]
["NELEPROD","HYDMIXED",null,null,null,null,null,null,"Mixed hydro",{"$f":"VLOOKUP(I23, LanguageData, MATCH(LanguageChosen, Language[Language],0), FALSE)","v":"Mixed hydro"}]
["NELEPROD","HYDPUMP",null,"IF(sum([Product=HYDPUMP#Item1=NELEPROD])=0,False,AND(sum([Product=HYDMIXED])=0,OR(sum([Product=ELECTR#Item1=EPUMPST])/sum([Product=HYDPUMP#Item1=NELEPROD])>1.6,sum([Product=ELECTR#Item1=EPUMPST])/sum([Product=HYDPUMP#Item1=NELEPROD])<1.3)))","If Table 1 - Mixed hydro=0, the ratio between \nTable 2 - Used for pumped storage and \nTable 1 - Pure pumped storage should be\nbetween 1.3 and 1.6",null,null,null,"Pure pumped storage",{"$f":"VLOOKUP(I24, LanguageData, MATCH(LanguageChosen, Language[Language],0), FALSE)","v":"Pure pumped storage"}]
["NELEPROD","WIND","IF(sum([Product=WINDON],[Product=WINDOFF])>0,sum([Product=WINDON],[Product=WINDOFF]),\"\")","< sum([Product=WINDON],[Product=WINDOFF])","Wind cannot be less than Onshore + Offshore",null,null,null,"Wind",{"$f":"VLOOKUP(I25, LanguageData, MATCH(LanguageChosen, Language[Language],0), FALSE)","v":"Wind"}]
["NELEPROD","WINDON",null,null,null,null,null,null,"Onshore",{"$f":"VLOOKUP(I26, LanguageData, MATCH(LanguageChosen, Language[Language],0), FALSE)","v":"Onshore"}]
["NELEPROD","WINDOFF",null,null,null,null,null,null,"Offshore",{"$f":"VLOOKUP(I27, LanguageData, MATCH(LanguageChosen, Language[Language],0), FALSE)","v":"Offshore"}]
["NELEPROD","SOLAR","IF(sum([Product=SOLARPV],[Product=SOLARTH])>0,sum([Product=SOLARPV],[Product=SOLARTH]),\"\")","< sum([Product=SOLARPV],[Product=SOLARTH])","Solar cannot be less than Solar \nphotovoltaic + Solar thermal",null,null,null,"Solar",{"$f":"VLOOKUP(I28, LanguageData, MATCH(LanguageChosen, Language[Language],0), FALSE)","v":"Solar"}]
["NELEPROD","SOLARPV",null,null,null,null,null,null,"Solar photovoltaic",{"$f":"VLOOKUP(I29, LanguageData, MATCH(LanguageChosen, Language[Language],0), FALSE)","v":"Solar photovoltaic"}]
["NELEPROD","SOLARTH",null,null,null,null,null,null,"Solar thermal",{"$f":"VLOOKUP(I30, LanguageData, MATCH(LanguageChosen, Language[Language],0), FALSE)","v":"Solar thermal"}]
["NELEPROD","GEOTHERM",null,null,null,null,null,null,"Geothermal",{"$f":"VLOOKUP(I31, LanguageData, MATCH(LanguageChosen, Language[Language],0), FALSE)","v":"Geothermal"}]
["NELEPROD","OTHERREN",null,null,null,null,null,null,"Other renewable sources",{"$f":"VLOOKUP(I32, LanguageData, MATCH(LanguageChosen, Language[Language],0), FALSE)","v":"Other renewable sources"}]
["NELEPROD","NONSPEC",null,null,null,null,null,null,"Not specified",{"$f":"VLOOKUP(I33, LanguageData, MATCH(LanguageChosen, Language[Language],0), FALSE)","v":"Not specified"}]
[]
[null,null,null,null,null,null,null,null,"Table 2: SUMMARY OF PRODUCTION AND SUPPLY/CONSUMPTION (CALCULATED) (GWh)",{"$f":"VLOOKUP(I35, LanguageData, MATCH(LanguageChosen, Language[Language],0), FALSE)","v":"Table 2: SUMMARY OF PRODUCTION AND SUPPLY/CONSUMPTION (CALCULATED) (GWh)"}]
["Formula_1","Formula_1","IF(sum([Product=ELECTR#Item1=NELEPROD])>0,sum([Product=ELECTR#Item1=NELEPROD]),\"\")",null,null,1,null,null,"Total net production",{"$f":"VLOOKUP(I36, LanguageData, MATCH(LanguageChosen, Language[Language],0), FALSE)","v":"Total net production"}]
["TOTIMPSB","ELECTR",null,null,null,null,null,null,"Imports",{"$f":"VLOOKUP(I37, LanguageData, MATCH(LanguageChosen, Language[Language],0), FALSE)","v":"Imports"}]
["TOTEUIMPS","ELECTR",null,"> sum([Item1=TOTIMPSB])","Imports of which from EU cannot \nbe bigger than Total imports",null,null,null,"Of which from the EU",{"$f":"VLOOKUP(I38, LanguageData, MATCH(LanguageChosen, Language[Language],0), FALSE)","v":"Of which from the EU"}]
["TOTEXPSB","ELECTR",null,"> sum([Product=ELECTR#Item1=NELEPROD],[Product=ELECTR#Item1=TOTIMPSB])","Total exports cannot be bigger than \nTotal net production + Total imports",null,null,null,"Exports",{"$f":"VLOOKUP(I39, LanguageData, MATCH(LanguageChosen, Language[Language],0), FALSE)","v":"Exports"}]
["TOTEUEXPS","ELECTR",null,"> sum([Item1=TOTEXPSB])","Exports of which to EU cannot be \nbigger than Total exports",null,null,null,"Of which to the EU",{"$f":"VLOOKUP(I40, LanguageData, MATCH(LanguageChosen, Language[Language],0), FALSE)","v":"Of which to the EU"}]
["EPUMPST","ELECTR",null,"< sum([Item1=NELEPROD#Product=HYDPUMP])","Used for pumped storage cannot be \nlower than Table 1 - Pure pumped storage",null,null,null,"Used for pumped storage",{"$f":"VLOOKUP(I41, LanguageData, MATCH(LanguageChosen, Language[Language],0), FALSE)","v":"Used for pumped storage"}]
["DISTLOSS","ELECTR",null,"AND(sum([Item1=DISTLOSS])>0,(sum([Product=ELECTR#Item1=NELEPROD],[Product=ELECTR#Item1=TOTIMPSB]))*0.15<sum([Item1=DISTLOSS]))","If Transmission and distribution losses are \nreported, their magnitude vis-à-vis total \nsupply of electricity has to be reasonably low",null,null,1,"Transmission and distribution losses",{"$f":"VLOOKUP(I42, LanguageData, MATCH(LanguageChosen, Language[Language],0), FALSE)","v":"Transmission and distribution losses"}]
["TFCCALC","ELECTR","IF((sum([Product=ELECTR#Item1=NELEPROD],[Item1=TOTIMPSB]) - sum([Item1=TOTEXPSB],[Item1=EPUMPST],[Item1=DISTLOSS]))>0,sum([Product=ELECTR#Item1=NELEPROD],[Item1=TOTIMPSB]) - sum([Item1=TOTEXPSB],[Item1=EPUMPST],[Item1=DISTLOSS]),\"\")","sum([Item1=TFCCALC])<0","Total consumption (calculated) cannot be negative",1,null,null,"Total consumption (calculated)",{"$f":"VLOOKUP(I43, LanguageData, MATCH(LanguageChosen, Language[Language],0), FALSE)","v":"Total consumption (calculated)"}]

{"sheet":"TemplateRemarks","index":24,"n_rows":35,"n_cols":16,"rows_kept":35,"cut":false,"hidden":true,"merged":[[0,4,2,4]]}
["Mode","Remarks",null,null,{"$f":"VLOOKUP(B1, LanguageData, MATCH(LanguageChosen, Language[Language],0), FALSE)","v":"Remarks"}]
["DataType"]
["Product"]
["Version",2024,"TypeRow",null,"txt","txt","txt","txt","txt","txt","txt","txt","txt","txt","txt","txt"]
["Item2",null,null,null,"M01","M02","M03","M04","M05","M06","M07","M08","M09","M10","M11","M12"]
[null,null,"Time",{"$f":"CountryName","v":"Australia"},{"$f":"$B$4&E5","v":"2024M01"},{"$f":"$B$4&F5","v":"2024M02"},"2024M03","2024M04","2024M05","2024M06","2024M07","2024M08","2024M09","2024M10","2024M11","2024M12"]
["Item1",null,"Label"]
["REMROW01",null,"Remarks 1"]
["REMROW02",null,"Remarks 2"]
["REMROW03",null,"Remarks 3"]
["REMROW04",null,"Remarks 4"]
["REMROW05",null,"Remarks 5"]
["REMROW06",null,"Remarks 6"]
["REMROW07",null,"Remarks 7"]
["REMROW08",null,"Remarks 8"]
["REMROW09",null,"Remarks 9"]
["REMROW10",null,"Remarks 10"]
["REMROW11",null,"Remarks 11"]
["REMROW12",null,"Remarks 12"]
["REMROW13",null,"Remarks 13"]
["REMROW14",null,"Remarks 14"]
["REMROW15",null,"Remarks 15"]
["REMROW16",null,"Remarks 16"]
["REMROW17",null,"Remarks 17"]
["REMROW18",null,"Remarks 18"]
["REMROW19",null,"Remarks 19"]
["REMROW20",null,"Remarks 20"]
["REMROW21",null,"Remarks 21"]
["REMROW22",null,"Remarks 22"]
["REMROW23",null,"Remarks 23"]
["REMROW24",null,"Remarks 24"]
["REMROW25",null,"Remarks 25"]
["REMROW26",null,"Remarks 26"]
["REMROW27",null,"Remarks 27"]
["REMROW28",null,"Remarks 28"]

{"sheet":"CheckReport","index":25,"n_rows":1,"n_cols":14,"rows_kept":1,"cut":false,"hidden":true,"merged":[]}
["COUNTRY","QUEST","DATATYPE","PRODUCT","ITEM1","ITEM2","TIME","VALIDATION","VALUE","EXPECTED","RULE","CELL","TABLE","ERRORTYPE"]

{"sheet":"TemplateGraphs","index":26,"n_rows":363,"n_cols":30,"rows_kept":363,"cut":false,"hidden":true,"merged":[]}
["Mode",null,null,null,null,null,null,null,"Monthly Electricity Statistics (GWh)",null,null,null,null,null,null,null,{"$f":"CountryName&\": \"&VLOOKUP(I1,LanguageData,MATCH(LanguageChosen,Language[Language]),FALSE)","v":"Australia: Monthly Electricity Statistics (GWh)"}]
["DataType","BALANCE"]
["Item2"]
["Version","2026M07",null,null,null,null,null,null,"FormulaRow"]
[null,null,null,null,null,null,null,null,"CheckRow"]
[null,null,null,null,null,null,null,null,"LockedRow",null,null,1]
[null,null,null,null,null,null,null,null,"EmptyRow"]
[null,null,null,null,null,null,null,null,"VoluntaryRow"]
[null,null,null,null,null,null,null,null,null,{"$f":"CountryName","v":"Australia"}]
[]
["Item1","Product","FormulaCol","CheckCol1","LabelCheckCol1","LockedCol","EmptyCol","VoluntaryCol","Label","Flow","Time","Value"]
["NELEPROD","ELECTR",null,null,null,null,null,null,"Total net production","Total net production",{"$f":"YEAR(DATE(LEFT($B$4,4),RIGHT($B$4,2)-M12,1)) & \"M\" & TEXT(MONTH(DATE(LEFT($B$4,4),RIGHT($B$4,2)-M12,1)),\"00\")","v":"2025M08"},null,11]
["NELEPROD","NUCLEAR",null,null,null,null,null,null,"Nuclear","Nuclear",{"$f":"YEAR(DATE(LEFT($B$4,4),RIGHT($B$4,2)-M13,1)) & \"M\" & TEXT(MONTH(DATE(LEFT($B$4,4),RIGHT($B$4,2)-M13,1)),\"00\")","v":"2025M08"},null,11]
["NELEPROD","COMBFUEL",null,null,null,null,null,null,"Conventional thermal","Conventional thermal","2025M08",null,11]
["NELEPROD","COAL",null,null,null,null,null,null,"Coal","Coal","2025M08",null,11]
["NELEPROD","OIL",null,null,null,null,null,null,"Oil","Oil","2025M08",null,11]
["NELEPROD","NATGAS",null,null,null,null,null,null,"Natural gas","Natural gas","2025M08",null,11]
["NELEPROD","COMBREN",null,null,null,null,null,null,"Combustible renewables","Combustible renewables","2025M08",null,11]
["NELEPROD","COMBNREN",null,null,null,null,null,null,"Other combustible fuels (non-renewable)","Other combustible fuels (non-renewable)","2025M08",null,11]
["NELEPROD","HYDRO",null,null,null,null,null,null,"Hydro","Hydro","2025M08",null,11]
["NELEPROD","HYDPURE",null,null,null,null,null,null,"Pure hydro","Pure hydro","2025M08",null,11]
["NELEPROD","HYDMIXED",null,null,null,null,null,null,"Mixed hydro","Mixed hydro","2025M08",null,11]
["NELEPROD","HYDPUMP",null,null,null,null,null,null,"Pure pumped storage","Pure pumped storage","2025M08",null,11]
["NELEPROD","WIND",null,null,null,null,null,null,"Wind","Wind","2025M08",null,11]
["NELEPROD","WINDON",null,null,null,null,null,null,"Onshore","Onshore","2025M08",null,11]
["NELEPROD","WINDOFF",null,null,null,null,null,null,"Offshore","Offshore","2025M08",null,11]
["NELEPROD","SOLAR",null,null,null,null,null,null,"Solar","Solar","2025M08",null,11]
["NELEPROD","SOLARPV",null,null,null,null,null,null,"Solar photovoltaic","Solar photovoltaic","2025M08",null,11]
["NELEPROD","SOLARTH",null,null,null,null,null,null,"Solar thermal","Solar thermal","2025M08",null,11]
["NELEPROD","GEOTHERM",null,null,null,null,null,null,"Geothermal","Geothermal","2025M08",null,11]
["NELEPROD","OTHERREN",null,null,null,null,null,null,"Other renewable sources","Other renewable sources","2025M08",null,11]
["NELEPROD","NONSPEC",null,null,null,null,null,null,"Not specified","Not specified","2025M08",null,11]
["TOTIMPSB","ELECTR",null,null,null,null,null,null,"Imports","Imports","2025M08",null,11]
["TOTEUIMPS","ELECTR",null,null,null,null,null,null,"Of which from the EU","Of which from the EU","2025M08",null,11]
["TOTEXPSB","ELECTR",null,null,null,null,null,null,"Exports","Exports","2025M08",null,11]
["TOTEUEXPS","ELECTR",null,null,null,null,null,null,"Of which to the EU","Of which to the EU","2025M08",null,11]
["EPUMPST","ELECTR",null,null,null,null,null,null,"Used for pumped storage","Used for pumped storage","2025M08",null,11]
["DISTLOSS","ELECTR",null,null,null,null,null,null,"Transmission and distribution losses","Transmission and distribution losses","2025M08",null,11]
["TFCCALC","ELECTR",null,null,null,null,null,null,"Total consumption (calculated)","Total consumption (calculated)","2025M08",null,11]
["NELEPROD","ELECTR",null,null,null,null,null,null,"Total net production","Total net production","2025M09",null,10]
["NELEPROD","NUCLEAR",null,null,null,null,null,null,"Nuclear","Nuclear","2025M09",null,10]
["NELEPROD","COMBFUEL",null,null,null,null,null,null,"Conventional thermal","Conventional thermal","2025M09",null,10]
["NELEPROD","COAL",null,null,null,null,null,null,"Coal","Coal","2025M09",null,10]
["NELEPROD","OIL",null,null,null,null,null,null,"Oil","Oil","2025M09",null,10]
["NELEPROD","NATGAS",null,null,null,null,null,null,"Natural gas","Natural gas","2025M09",null,10]
["NELEPROD","COMBREN",null,null,null,null,null,null,"Combustible renewables","Combustible renewables","2025M09",null,10]
["NELEPROD","COMBNREN",null,null,null,null,null,null,"Other combustible fuels (non-renewable)","Other combustible fuels (non-renewable)","2025M09",null,10]
["NELEPROD","HYDRO",null,null,null,null,null,null,"Hydro","Hydro","2025M09",null,10]
["NELEPROD","HYDPURE",null,null,null,null,null,null,"Pure hydro","Pure hydro","2025M09",null,10]
["NELEPROD","HYDMIXED",null,null,null,null,null,null,"Mixed hydro","Mixed hydro","2025M09",null,10]
["NELEPROD","HYDPUMP",null,null,null,null,null,null,"Pure pumped storage","Pure pumped storage","2025M09",null,10]
["NELEPROD","WIND",null,null,null,null,null,null,"Wind","Wind","2025M09",null,10]
["NELEPROD","WINDON",null,null,null,null,null,null,"Onshore","Onshore","2025M09",null,10]
["NELEPROD","WINDOFF",null,null,null,null,null,null,"Offshore","Offshore","2025M09",null,10]
["NELEPROD","SOLAR",null,null,null,null,null,null,"Solar","Solar","2025M09",null,10]
["NELEPROD","SOLARPV",null,null,null,null,null,null,"Solar photovoltaic","Solar photovoltaic","2025M09",null,10]
["NELEPROD","SOLARTH",null,null,null,null,null,null,"Solar thermal","Solar thermal","2025M09",null,10]
["NELEPROD","GEOTHERM",null,null,null,null,null,null,"Geothermal","Geothermal","2025M09",null,10]
["NELEPROD","OTHERREN",null,null,null,null,null,null,"Other renewable sources","Other renewable sources","2025M09",null,10]
["NELEPROD","NONSPEC",null,null,null,null,null,null,"Not specified","Not specified","2025M09",null,10]
["TOTIMPSB","ELECTR",null,null,null,null,null,null,"Imports","Imports","2025M09",null,10]
["TOTEUIMPS","ELECTR",null,null,null,null,null,null,"Of which from the EU","Of which from the EU","2025M09",null,10]
["TOTEXPSB","ELECTR",null,null,null,null,null,null,"Exports","Exports","2025M09",null,10]
["TOTEUEXPS","ELECTR",null,null,null,null,null,null,"Of which to the EU","Of which to the EU","2025M09",null,10]
["EPUMPST","ELECTR",null,null,null,null,null,null,"Used for pumped storage","Used for pumped storage","2025M09",null,10]
["DISTLOSS","ELECTR",null,null,null,null,null,null,"Transmission and distribution losses","Transmission and distribution losses","2025M09",null,10]
["TFCCALC","ELECTR",null,null,null,null,null,null,"Total consumption (calculated)","Total consumption (calculated)","2025M09",null,10]
["NELEPROD","ELECTR",null,null,null,null,null,null,"Total net production","Total net production","2025M10",null,9]
["NELEPROD","NUCLEAR",null,null,null,null,null,null,"Nuclear","Nuclear","2025M10",null,9]
["NELEPROD","COMBFUEL",null,null,null,null,null,null,"Conventional thermal","Conventional thermal","2025M10",null,9]
["NELEPROD","COAL",null,null,null,null,null,null,"Coal","Coal","2025M10",null,9]
["NELEPROD","OIL",null,null,null,null,null,null,"Oil","Oil","2025M10",null,9]
["NELEPROD","NATGAS",null,null,null,null,null,null,"Natural gas","Natural gas","2025M10",null,9]
["NELEPROD","COMBREN",null,null,null,null,null,null,"Combustible renewables","Combustible renewables","2025M10",null,9]
["NELEPROD","COMBNREN",null,null,null,null,null,null,"Other combustible fuels (non-renewable)","Other combustible fuels (non-renewable)","2025M10",null,9]
["NELEPROD","HYDRO",null,null,null,null,null,null,"Hydro","Hydro","2025M10",null,9]
["NELEPROD","HYDPURE",null,null,null,null,null,null,"Pure hydro","Pure hydro",{"$f":"YEAR(DATE(LEFT($B$4,4),RIGHT($B$4,2)-M77,1)) & \"M\" & TEXT(MONTH(DATE(LEFT($B$4,4),RIGHT($B$4,2)-M77,1)),\"00\")","v":"2025M10"},null,9]
["NELEPROD","HYDMIXED",null,null,null,null,null,null,"Mixed hydro","Mixed hydro","2025M10",null,9]
["NELEPROD","HYDPUMP",null,null,null,null,null,null,"Pure pumped storage","Pure pumped storage","2025M10",null,9]
["NELEPROD","WIND",null,null,null,null,null,null,"Wind","Wind","2025M10",null,9]
["NELEPROD","WINDON",null,null,null,null,null,null,"Onshore","Onshore","2025M10",null,9]
["NELEPROD","WINDOFF",null,null,null,null,null,null,"Offshore","Offshore","2025M10",null,9]
["NELEPROD","SOLAR",null,null,null,null,null,null,"Solar","Solar","2025M10",null,9]
["NELEPROD","SOLARPV",null,null,null,null,null,null,"Solar photovoltaic","Solar photovoltaic","2025M10",null,9]
["NELEPROD","SOLARTH",null,null,null,null,null,null,"Solar thermal","Solar thermal","2025M10",null,9]
["NELEPROD","GEOTHERM",null,null,null,null,null,null,"Geothermal","Geothermal","2025M10",null,9]
["NELEPROD","OTHERREN",null,null,null,null,null,null,"Other renewable sources","Other renewable sources","2025M10",null,9]
["NELEPROD","NONSPEC",null,null,null,null,null,null,"Not specified","Not specified","2025M10",null,9]
["TOTIMPSB","ELECTR",null,null,null,null,null,null,"Imports","Imports","2025M10",null,9]
["TOTEUIMPS","ELECTR",null,null,null,null,null,null,"Of which from the EU","Of which from the EU","2025M10",null,9]
["TOTEXPSB","ELECTR",null,null,null,null,null,null,"Exports","Exports","2025M10",null,9]
["TOTEUEXPS","ELECTR",null,null,null,null,null,null,"Of which to the EU","Of which to the EU","2025M10",null,9]
["EPUMPST","ELECTR",null,null,null,null,null,null,"Used for pumped storage","Used for pumped storage","2025M10",null,9]
["DISTLOSS","ELECTR",null,null,null,null,null,null,"Transmission and distribution losses","Transmission and distribution losses","2025M10",null,9]
["TFCCALC","ELECTR",null,null,null,null,null,null,"Total consumption (calculated)","Total consumption (calculated)","2025M10",null,9]
["NELEPROD","ELECTR",null,null,null,null,null,null,"Total net production","Total net production","2025M11",null,8]
["NELEPROD","NUCLEAR",null,null,null,null,null,null,"Nuclear","Nuclear","2025M11",null,8]
["NELEPROD","COMBFUEL",null,null,null,null,null,null,"Conventional thermal","Conventional thermal","2025M11",null,8]
["NELEPROD","COAL",null,null,null,null,null,null,"Coal","Coal","2025M11",null,8]
["NELEPROD","OIL",null,null,null,null,null,null,"Oil","Oil","2025M11",null,8]
["NELEPROD","NATGAS",null,null,null,null,null,null,"Natural gas","Natural gas","2025M11",null,8]
["NELEPROD","COMBREN",null,null,null,null,null,null,"Combustible renewables","Combustible renewables","2025M11",null,8]
["NELEPROD","COMBNREN",null,null,null,null,null,null,"Other combustible fuels (non-renewable)","Other combustible fuels (non-renewable)","2025M11",null,8]
["NELEPROD","HYDRO",null,null,null,null,null,null,"Hydro","Hydro","2025M11",null,8]
["NELEPROD","HYDPURE",null,null,null,null,null,null,"Pure hydro","Pure hydro","2025M11",null,8]
["NELEPROD","HYDMIXED",null,null,null,null,null,null,"Mixed hydro","Mixed hydro","2025M11",null,8]
["NELEPROD","HYDPUMP",null,null,null,null,null,null,"Pure pumped storage","Pure pumped storage","2025M11",null,8]
["NELEPROD","WIND",null,null,null,null,null,null,"Wind","Wind","2025M11",null,8]
["NELEPROD","WINDON",null,null,null,null,null,null,"Onshore","Onshore","2025M11",null,8]
["NELEPROD","WINDOFF",null,null,null,null,null,null,"Offshore","Offshore","2025M11",null,8]
["NELEPROD","SOLAR",null,null,null,null,null,null,"Solar","Solar","2025M11",null,8]
["NELEPROD","SOLARPV",null,null,null,null,null,null,"Solar photovoltaic","Solar photovoltaic","2025M11",null,8]
["NELEPROD","SOLARTH",null,null,null,null,null,null,"Solar thermal","Solar thermal","2025M11",null,8]
["NELEPROD","GEOTHERM",null,null,null,null,null,null,"Geothermal","Geothermal","2025M11",null,8]
["NELEPROD","OTHERREN",null,null,null,null,null,null,"Other renewable sources","Other renewable sources","2025M11",null,8]
["NELEPROD","NONSPEC",null,null,null,null,null,null,"Not specified","Not specified","2025M11",null,8]
["TOTIMPSB","ELECTR",null,null,null,null,null,null,"Imports","Imports","2025M11",null,8]
["TOTEUIMPS","ELECTR",null,null,null,null,null,null,"Of which from the EU","Of which from the EU","2025M11",null,8]
["TOTEXPSB","ELECTR",null,null,null,null,null,null,"Exports","Exports","2025M11",null,8]
["TOTEUEXPS","ELECTR",null,null,null,null,null,null,"Of which to the EU","Of which to the EU","2025M11",null,8]
["EPUMPST","ELECTR",null,null,null,null,null,null,"Used for pumped storage","Used for pumped storage","2025M11",null,8]
["DISTLOSS","ELECTR",null,null,null,null,null,null,"Transmission and distribution losses","Transmission and distribution losses","2025M11",null,8]
["TFCCALC","ELECTR",null,null,null,null,null,null,"Total consumption (calculated)","Total consumption (calculated)","2025M11",null,8]
["NELEPROD","ELECTR",null,null,null,null,null,null,"Total net production","Total net production","2025M12",null,7]
["NELEPROD","NUCLEAR",null,null,null,null,null,null,"Nuclear","Nuclear","2025M12",null,7]
["NELEPROD","COMBFUEL",null,null,null,null,null,null,"Conventional thermal","Conventional thermal","2025M12",null,7]
["NELEPROD","COAL",null,null,null,null,null,null,"Coal","Coal","2025M12",null,7]
["NELEPROD","OIL",null,null,null,null,null,null,"Oil","Oil","2025M12",null,7]
["NELEPROD","NATGAS",null,null,null,null,null,null,"Natural gas","Natural gas","2025M12",null,7]
["NELEPROD","COMBREN",null,null,null,null,null,null,"Combustible renewables","Combustible renewables","2025M12",null,7]
["NELEPROD","COMBNREN",null,null,null,null,null,null,"Other combustible fuels (non-renewable)","Other combustible fuels (non-renewable)","2025M12",null,7]
["NELEPROD","HYDRO",null,null,null,null,null,null,"Hydro","Hydro","2025M12",null,7]
["NELEPROD","HYDPURE",null,null,null,null,null,null,"Pure hydro","Pure hydro","2025M12",null,7]
["NELEPROD","HYDMIXED",null,null,null,null,null,null,"Mixed hydro","Mixed hydro","2025M12",null,7]
["NELEPROD","HYDPUMP",null,null,null,null,null,null,"Pure pumped storage","Pure pumped storage","2025M12",null,7]
["NELEPROD","WIND",null,null,null,null,null,null,"Wind","Wind","2025M12",null,7]
["NELEPROD","WINDON",null,null,null,null,null,null,"Onshore","Onshore","2025M12",null,7]
["NELEPROD","WINDOFF",null,null,null,null,null,null,"Offshore","Offshore","2025M12",null,7]
["NELEPROD","SOLAR",null,null,null,null,null,null,"Solar","Solar","2025M12",null,7]
["NELEPROD","SOLARPV",null,null,null,null,null,null,"Solar photovoltaic","Solar photovoltaic","2025M12",null,7]
["NELEPROD","SOLARTH",null,null,null,null,null,null,"Solar thermal","Solar thermal",{"$f":"YEAR(DATE(LEFT($B$4,4),RIGHT($B$4,2)-M141,1)) & \"M\" & TEXT(MONTH(DATE(LEFT($B$4,4),RIGHT($B$4,2)-M141,1)),\"00\")","v":"2025M12"},null,7]
["NELEPROD","GEOTHERM",null,null,null,null,null,null,"Geothermal","Geothermal","2025M12",null,7]
["NELEPROD","OTHERREN",null,null,null,null,null,null,"Other renewable sources","Other renewable sources","2025M12",null,7]
["NELEPROD","NONSPEC",null,null,null,null,null,null,"Not specified","Not specified","2025M12",null,7]
["TOTIMPSB","ELECTR",null,null,null,null,null,null,"Imports","Imports","2025M12",null,7]
["TOTEUIMPS","ELECTR",null,null,null,null,null,null,"Of which from the EU","Of which from the EU","2025M12",null,7]
["TOTEXPSB","ELECTR",null,null,null,null,null,null,"Exports","Exports","2025M12",null,7]
["TOTEUEXPS","ELECTR",null,null,null,null,null,null,"Of which to the EU","Of which to the EU","2025M12",null,7]
["EPUMPST","ELECTR",null,null,null,null,null,null,"Used for pumped storage","Used for pumped storage","2025M12",null,7]
["DISTLOSS","ELECTR",null,null,null,null,null,null,"Transmission and distribution losses","Transmission and distribution losses","2025M12",null,7]
["TFCCALC","ELECTR",null,null,null,null,null,null,"Total consumption (calculated)","Total consumption (calculated)","2025M12",null,7]
["NELEPROD","ELECTR",null,null,null,null,null,null,"Total net production","Total net production","2026M01",null,6]
["NELEPROD","NUCLEAR",null,null,null,null,null,null,"Nuclear","Nuclear","2026M01",null,6]
["NELEPROD","COMBFUEL",null,null,null,null,null,null,"Conventional thermal","Conventional thermal","2026M01",null,6]
["NELEPROD","COAL",null,null,null,null,null,null,"Coal","Coal","2026M01",null,6]
["NELEPROD","OIL",null,null,null,null,null,null,"Oil","Oil","2026M01",null,6]
["NELEPROD","NATGAS",null,null,null,null,null,null,"Natural gas","Natural gas","2026M01",null,6]
["NELEPROD","COMBREN",null,null,null,null,null,null,"Combustible renewables","Combustible renewables","2026M01",null,6]
["NELEPROD","COMBNREN",null,null,null,null,null,null,"Other combustible fuels (non-renewable)","Other combustible fuels (non-renewable)","2026M01",null,6]
["NELEPROD","HYDRO",null,null,null,null,null,null,"Hydro","Hydro","2026M01",null,6]
["NELEPROD","HYDPURE",null,null,null,null,null,null,"Pure hydro","Pure hydro","2026M01",null,6]
["NELEPROD","HYDMIXED",null,null,null,null,null,null,"Mixed hydro","Mixed hydro","2026M01",null,6]
["NELEPROD","HYDPUMP",null,null,null,null,null,null,"Pure pumped storage","Pure pumped storage","2026M01",null,6]
["NELEPROD","WIND",null,null,null,null,null,null,"Wind","Wind","2026M01",null,6]
["NELEPROD","WINDON",null,null,null,null,null,null,"Onshore","Onshore","2026M01",null,6]
["NELEPROD","WINDOFF",null,null,null,null,null,null,"Offshore","Offshore","2026M01",null,6]
["NELEPROD","SOLAR",null,null,null,null,null,null,"Solar","Solar","2026M01",null,6]
["NELEPROD","SOLARPV",null,null,null,null,null,null,"Solar photovoltaic","Solar photovoltaic","2026M01",null,6]
["NELEPROD","SOLARTH",null,null,null,null,null,null,"Solar thermal","Solar thermal","2026M01",null,6]
["NELEPROD","GEOTHERM",null,null,null,null,null,null,"Geothermal","Geothermal","2026M01",null,6]
["NELEPROD","OTHERREN",null,null,null,null,null,null,"Other renewable sources","Other renewable sources","2026M01",null,6]
["NELEPROD","NONSPEC",null,null,null,null,null,null,"Not specified","Not specified","2026M01",null,6]
["TOTIMPSB","ELECTR",null,null,null,null,null,null,"Imports","Imports","2026M01",null,6]
["TOTEUIMPS","ELECTR",null,null,null,null,null,null,"Of which from the EU","Of which from the EU","2026M01",null,6]
["TOTEXPSB","ELECTR",null,null,null,null,null,null,"Exports","Exports","2026M01",null,6]
["TOTEUEXPS","ELECTR",null,null,null,null,null,null,"Of which to the EU","Of which to the EU","2026M01",null,6]
["EPUMPST","ELECTR",null,null,null,null,null,null,"Used for pumped storage","Used for pumped storage","2026M01",null,6]
["DISTLOSS","ELECTR",null,null,null,null,null,null,"Transmission and distribution losses","Transmission and distribution losses","2026M01",null,6]
["TFCCALC","ELECTR",null,null,null,null,null,null,"Total consumption (calculated)","Total consumption (calculated)","2026M01",null,6]
["NELEPROD","ELECTR",null,null,null,null,null,null,"Total net production","Total net production","2026M02",null,5]
["NELEPROD","NUCLEAR",null,null,null,null,null,null,"Nuclear","Nuclear","2026M02",null,5]
["NELEPROD","COMBFUEL",null,null,null,null,null,null,"Conventional thermal","Conventional thermal","2026M02",null,5]
["NELEPROD","COAL",null,null,null,null,null,null,"Coal","Coal","2026M02",null,5]
["NELEPROD","OIL",null,null,null,null,null,null,"Oil","Oil","2026M02",null,5]
["NELEPROD","NATGAS",null,null,null,null,null,null,"Natural gas","Natural gas","2026M02",null,5]
["NELEPROD","COMBREN",null,null,null,null,null,null,"Combustible renewables","Combustible renewables","2026M02",null,5]
["NELEPROD","COMBNREN",null,null,null,null,null,null,"Other combustible fuels (non-renewable)","Other combustible fuels (non-renewable)","2026M02",null,5]
["NELEPROD","HYDRO",null,null,null,null,null,null,"Hydro","Hydro","2026M02",null,5]
["NELEPROD","HYDPURE",null,null,null,null,null,null,"Pure hydro","Pure hydro","2026M02",null,5]
["NELEPROD","HYDMIXED",null,null,null,null,null,null,"Mixed hydro","Mixed hydro","2026M02",null,5]
["NELEPROD","HYDPUMP",null,null,null,null,null,null,"Pure pumped storage","Pure pumped storage","2026M02",null,5]
["NELEPROD","WIND",null,null,null,null,null,null,"Wind","Wind","2026M02",null,5]
["NELEPROD","WINDON",null,null,null,null,null,null,"Onshore","Onshore","2026M02",null,5]
["NELEPROD","WINDOFF",null,null,null,null,null,null,"Offshore","Offshore","2026M02",null,5]
["NELEPROD","SOLAR",null,null,null,null,null,null,"Solar","Solar","2026M02",null,5]
["NELEPROD","SOLARPV",null,null,null,null,null,null,"Solar photovoltaic","Solar photovoltaic","2026M02",null,5]
["NELEPROD","SOLARTH",null,null,null,null,null,null,"Solar thermal","Solar thermal","2026M02",null,5]
["NELEPROD","GEOTHERM",null,null,null,null,null,null,"Geothermal","Geothermal","2026M02",null,5]
["NELEPROD","OTHERREN",null,null,null,null,null,null,"Other renewable sources","Other renewable sources","2026M02",null,5]
["NELEPROD","NONSPEC",null,null,null,null,null,null,"Not specified","Not specified","2026M02",null,5]
["TOTIMPSB","ELECTR",null,null,null,null,null,null,"Imports","Imports","2026M02",null,5]
["TOTEUIMPS","ELECTR",null,null,null,null,null,null,"Of which from the EU","Of which from the EU","2026M02",null,5]
["TOTEXPSB","ELECTR",null,null,null,null,null,null,"Exports","Exports","2026M02",null,5]
["TOTEUEXPS","ELECTR",null,null,null,null,null,null,"Of which to the EU","Of which to the EU","2026M02",null,5]
["EPUMPST","ELECTR",null,null,null,null,null,null,"Used for pumped storage","Used for pumped storage",{"$f":"YEAR(DATE(LEFT($B$4,4),RIGHT($B$4,2)-M205,1)) & \"M\" & TEXT(MONTH(DATE(LEFT($B$4,4),RIGHT($B$4,2)-M205,1)),\"00\")","v":"2026M02"},null,5]
["DISTLOSS","ELECTR",null,null,null,null,null,null,"Transmission and distribution losses","Transmission and distribution losses","2026M02",null,5]
["TFCCALC","ELECTR",null,null,null,null,null,null,"Total consumption (calculated)","Total consumption (calculated)","2026M02",null,5]
["NELEPROD","ELECTR",null,null,null,null,null,null,"Total net production","Total net production","2026M03",null,4]
["NELEPROD","NUCLEAR",null,null,null,null,null,null,"Nuclear","Nuclear","2026M03",null,4]
["NELEPROD","COMBFUEL",null,null,null,null,null,null,"Conventional thermal","Conventional thermal","2026M03",null,4]
["NELEPROD","COAL",null,null,null,null,null,null,"Coal","Coal","2026M03",null,4]
["NELEPROD","OIL",null,null,null,null,null,null,"Oil","Oil","2026M03",null,4]
["NELEPROD","NATGAS",null,null,null,null,null,null,"Natural gas","Natural gas","2026M03",null,4]
["NELEPROD","COMBREN",null,null,null,null,null,null,"Combustible renewables","Combustible renewables","2026M03",null,4]
["NELEPROD","COMBNREN",null,null,null,null,null,null,"Other combustible fuels (non-renewable)","Other combustible fuels (non-renewable)","2026M03",null,4]
["NELEPROD","HYDRO",null,null,null,null,null,null,"Hydro","Hydro","2026M03",null,4]
["NELEPROD","HYDPURE",null,null,null,null,null,null,"Pure hydro","Pure hydro","2026M03",null,4]
["NELEPROD","HYDMIXED",null,null,null,null,null,null,"Mixed hydro","Mixed hydro","2026M03",null,4]
["NELEPROD","HYDPUMP",null,null,null,null,null,null,"Pure pumped storage","Pure pumped storage","2026M03",null,4]
["NELEPROD","WIND",null,null,null,null,null,null,"Wind","Wind","2026M03",null,4]
["NELEPROD","WINDON",null,null,null,null,null,null,"Onshore","Onshore","2026M03",null,4]
["NELEPROD","WINDOFF",null,null,null,null,null,null,"Offshore","Offshore","2026M03",null,4]
["NELEPROD","SOLAR",null,null,null,null,null,null,"Solar","Solar","2026M03",null,4]
["NELEPROD","SOLARPV",null,null,null,null,null,null,"Solar photovoltaic","Solar photovoltaic","2026M03",null,4]
["NELEPROD","SOLARTH",null,null,null,null,null,null,"Solar thermal","Solar thermal","2026M03",null,4]
["NELEPROD","GEOTHERM",null,null,null,null,null,null,"Geothermal","Geothermal","2026M03",null,4]
["NELEPROD","OTHERREN",null,null,null,null,null,null,"Other renewable sources","Other renewable sources","2026M03",null,4]
["NELEPROD","NONSPEC",null,null,null,null,null,null,"Not specified","Not specified","2026M03",null,4]
["TOTIMPSB","ELECTR",null,null,null,null,null,null,"Imports","Imports","2026M03",null,4]
["TOTEUIMPS","ELECTR",null,null,null,null,null,null,"Of which from the EU","Of which from the EU","2026M03",null,4]
["TOTEXPSB","ELECTR",null,null,null,null,null,null,"Exports","Exports","2026M03",null,4]
["TOTEUEXPS","ELECTR",null,null,null,null,null,null,"Of which to the EU","Of which to the EU","2026M03",null,4]
["EPUMPST","ELECTR",null,null,null,null,null,null,"Used for pumped storage","Used for pumped storage","2026M03",null,4]
["DISTLOSS","ELECTR",null,null,null,null,null,null,"Transmission and distribution losses","Transmission and distribution losses","2026M03",null,4]
["TFCCALC","ELECTR",null,null,null,null,null,null,"Total consumption (calculated)","Total consumption (calculated)","2026M03",null,4]
["NELEPROD","ELECTR",null,null,null,null,null,null,"Total net production","Total net production","2026M04",null,3]
["NELEPROD","NUCLEAR",null,null,null,null,null,null,"Nuclear","Nuclear","2026M04",null,3]
["NELEPROD","COMBFUEL",null,null,null,null,null,null,"Conventional thermal","Conventional thermal","2026M04",null,3]
["NELEPROD","COAL",null,null,null,null,null,null,"Coal","Coal","2026M04",null,3]
["NELEPROD","OIL",null,null,null,null,null,null,"Oil","Oil","2026M04",null,3]
["NELEPROD","NATGAS",null,null,null,null,null,null,"Natural gas","Natural gas","2026M04",null,3]
["NELEPROD","COMBREN",null,null,null,null,null,null,"Combustible renewables","Combustible renewables","2026M04",null,3]
["NELEPROD","COMBNREN",null,null,null,null,null,null,"Other combustible fuels (non-renewable)","Other combustible fuels (non-renewable)","2026M04",null,3]
["NELEPROD","HYDRO",null,null,null,null,null,null,"Hydro","Hydro","2026M04",null,3]
["NELEPROD","HYDPURE",null,null,null,null,null,null,"Pure hydro","Pure hydro","2026M04",null,3]
["NELEPROD","HYDMIXED",null,null,null,null,null,null,"Mixed hydro","Mixed hydro","2026M04",null,3]
["NELEPROD","HYDPUMP",null,null,null,null,null,null,"Pure pumped storage","Pure pumped storage","2026M04",null,3]
["NELEPROD","WIND",null,null,null,null,null,null,"Wind","Wind","2026M04",null,3]
["NELEPROD","WINDON",null,null,null,null,null,null,"Onshore","Onshore","2026M04",null,3]
["NELEPROD","WINDOFF",null,null,null,null,null,null,"Offshore","Offshore","2026M04",null,3]
["NELEPROD","SOLAR",null,null,null,null,null,null,"Solar","Solar","2026M04",null,3]
["NELEPROD","SOLARPV",null,null,null,null,null,null,"Solar photovoltaic","Solar photovoltaic","2026M04",null,3]
["NELEPROD","SOLARTH",null,null,null,null,null,null,"Solar thermal","Solar thermal","2026M04",null,3]
["NELEPROD","GEOTHERM",null,null,null,null,null,null,"Geothermal","Geothermal","2026M04",null,3]
["NELEPROD","OTHERREN",null,null,null,null,null,null,"Other renewable sources","Other renewable sources","2026M04",null,3]
["NELEPROD","NONSPEC",null,null,null,null,null,null,"Not specified","Not specified","2026M04",null,3]
["TOTIMPSB","ELECTR",null,null,null,null,null,null,"Imports","Imports","2026M04",null,3]
["TOTEUIMPS","ELECTR",null,null,null,null,null,null,"Of which from the EU","Of which from the EU","2026M04",null,3]
["TOTEXPSB","ELECTR",null,null,null,null,null,null,"Exports","Exports","2026M04",null,3]
["TOTEUEXPS","ELECTR",null,null,null,null,null,null,"Of which to the EU","Of which to the EU","2026M04",null,3]
["EPUMPST","ELECTR",null,null,null,null,null,null,"Used for pumped storage","Used for pumped storage","2026M04",null,3]
["DISTLOSS","ELECTR",null,null,null,null,null,null,"Transmission and distribution losses","Transmission and distribution losses","2026M04",null,3]
["TFCCALC","ELECTR",null,null,null,null,null,null,"Total consumption (calculated)","Total consumption (calculated)","2026M04",null,3]
["NELEPROD","ELECTR",null,null,null,null,null,null,"Total net production","Total net production","2026M05",null,2]
["NELEPROD","NUCLEAR",null,null,null,null,null,null,"Nuclear","Nuclear","2026M05",null,2]
["NELEPROD","COMBFUEL",null,null,null,null,null,null,"Conventional thermal","Conventional thermal","2026M05",null,2]
["NELEPROD","COAL",null,null,null,null,null,null,"Coal","Coal","2026M05",null,2]
["NELEPROD","OIL",null,null,null,null,null,null,"Oil","Oil","2026M05",null,2]
["NELEPROD","NATGAS",null,null,null,null,null,null,"Natural gas","Natural gas",{"$f":"YEAR(DATE(LEFT($B$4,4),RIGHT($B$4,2)-M269,1)) & \"M\" & TEXT(MONTH(DATE(LEFT($B$4,4),RIGHT($B$4,2)-M269,1)),\"00\")","v":"2026M05"},null,2]
["NELEPROD","COMBREN",null,null,null,null,null,null,"Combustible renewables","Combustible renewables","2026M05",null,2]
["NELEPROD","COMBNREN",null,null,null,null,null,null,"Other combustible fuels (non-renewable)","Other combustible fuels (non-renewable)","2026M05",null,2]
["NELEPROD","HYDRO",null,null,null,null,null,null,"Hydro","Hydro","2026M05",null,2]
["NELEPROD","HYDPURE",null,null,null,null,null,null,"Pure hydro","Pure hydro","2026M05",null,2]
["NELEPROD","HYDMIXED",null,null,null,null,null,null,"Mixed hydro","Mixed hydro","2026M05",null,2]
["NELEPROD","HYDPUMP",null,null,null,null,null,null,"Pure pumped storage","Pure pumped storage","2026M05",null,2]
["NELEPROD","WIND",null,null,null,null,null,null,"Wind","Wind","2026M05",null,2]
["NELEPROD","WINDON",null,null,null,null,null,null,"Onshore","Onshore","2026M05",null,2]
["NELEPROD","WINDOFF",null,null,null,null,null,null,"Offshore","Offshore","2026M05",null,2]
["NELEPROD","SOLAR",null,null,null,null,null,null,"Solar","Solar","2026M05",null,2]
["NELEPROD","SOLARPV",null,null,null,null,null,null,"Solar photovoltaic","Solar photovoltaic","2026M05",null,2]
["NELEPROD","SOLARTH",null,null,null,null,null,null,"Solar thermal","Solar thermal","2026M05",null,2]
["NELEPROD","GEOTHERM",null,null,null,null,null,null,"Geothermal","Geothermal","2026M05",null,2]
["NELEPROD","OTHERREN",null,null,null,null,null,null,"Other renewable sources","Other renewable sources","2026M05",null,2]
["NELEPROD","NONSPEC",null,null,null,null,null,null,"Not specified","Not specified","2026M05",null,2]
["TOTIMPSB","ELECTR",null,null,null,null,null,null,"Imports","Imports","2026M05",null,2]
["TOTEUIMPS","ELECTR",null,null,null,null,null,null,"Of which from the EU","Of which from the EU","2026M05",null,2]
["TOTEXPSB","ELECTR",null,null,null,null,null,null,"Exports","Exports","2026M05",null,2]
["TOTEUEXPS","ELECTR",null,null,null,null,null,null,"Of which to the EU","Of which to the EU","2026M05",null,2]
["EPUMPST","ELECTR",null,null,null,null,null,null,"Used for pumped storage","Used for pumped storage","2026M05",null,2]
["DISTLOSS","ELECTR",null,null,null,null,null,null,"Transmission and distribution losses","Transmission and distribution losses","2026M05",null,2]
["TFCCALC","ELECTR",null,null,null,null,null,null,"Total consumption (calculated)","Total consumption (calculated)","2026M05",null,2]
["NELEPROD","ELECTR",null,null,null,null,null,null,"Total net production","Total net production","2026M06",null,1]
["NELEPROD","NUCLEAR",null,null,null,null,null,null,"Nuclear","Nuclear","2026M06",null,1]
["NELEPROD","COMBFUEL",null,null,null,null,null,null,"Conventional thermal","Conventional thermal","2026M06",null,1]
["NELEPROD","COAL",null,null,null,null,null,null,"Coal","Coal","2026M06",null,1]
["NELEPROD","OIL",null,null,null,null,null,null,"Oil","Oil","2026M06",null,1]
["NELEPROD","NATGAS",null,null,null,null,null,null,"Natural gas","Natural gas","2026M06",null,1]
["NELEPROD","COMBREN",null,null,null,null,null,null,"Combustible renewables","Combustible renewables","2026M06",null,1]
["NELEPROD","COMBNREN",null,null,null,null,null,null,"Other combustible fuels (non-renewable)","Other combustible fuels (non-renewable)","2026M06",null,1]
["NELEPROD","HYDRO",null,null,null,null,null,null,"Hydro","Hydro","2026M06",null,1]
["NELEPROD","HYDPURE",null,null,null,null,null,null,"Pure hydro","Pure hydro","2026M06",null,1]
["NELEPROD","HYDMIXED",null,null,null,null,null,null,"Mixed hydro","Mixed hydro","2026M06",null,1]
["NELEPROD","HYDPUMP",null,null,null,null,null,null,"Pure pumped storage","Pure pumped storage","2026M06",null,1]
["NELEPROD","WIND",null,null,null,null,null,null,"Wind","Wind","2026M06",null,1]
["NELEPROD","WINDON",null,null,null,null,null,null,"Onshore","Onshore","2026M06",null,1]
["NELEPROD","WINDOFF",null,null,null,null,null,null,"Offshore","Offshore","2026M06",null,1]
["NELEPROD","SOLAR",null,null,null,null,null,null,"Solar","Solar","2026M06",null,1]
["NELEPROD","SOLARPV",null,null,null,null,null,null,"Solar photovoltaic","Solar photovoltaic","2026M06",null,1]
["NELEPROD","SOLARTH",null,null,null,null,null,null,"Solar thermal","Solar thermal","2026M06",null,1]
["NELEPROD","GEOTHERM",null,null,null,null,null,null,"Geothermal","Geothermal","2026M06",null,1]
["NELEPROD","OTHERREN",null,null,null,null,null,null,"Other renewable sources","Other renewable sources","2026M06",null,1]
["NELEPROD","NONSPEC",null,null,null,null,null,null,"Not specified","Not specified","2026M06",null,1]
["TOTIMPSB","ELECTR",null,null,null,null,null,null,"Imports","Imports","2026M06",null,1]
["TOTEUIMPS","ELECTR",null,null,null,null,null,null,"Of which from the EU","Of which from the EU","2026M06",null,1]
["TOTEXPSB","ELECTR",null,null,null,null,null,null,"Exports","Exports","2026M06",null,1]
["TOTEUEXPS","ELECTR",null,null,null,null,null,null,"Of which to the EU","Of which to the EU","2026M06",null,1]
["EPUMPST","ELECTR",null,null,null,null,null,null,"Used for pumped storage","Used for pumped storage","2026M06",null,1]
["DISTLOSS","ELECTR",null,null,null,null,null,null,"Transmission and distribution losses","Transmission and distribution losses","2026M06",null,1]
["TFCCALC","ELECTR",null,null,null,null,null,null,"Total consumption (calculated)","Total consumption (calculated)","2026M06",null,1]
["NELEPROD","ELECTR",null,null,null,null,null,null,"Total net production","Total net production","2026M07",null,0]
["NELEPROD","NUCLEAR",null,null,null,null,null,null,"Nuclear","Nuclear","2026M07",null,0]
["NELEPROD","COMBFUEL",null,null,null,null,null,null,"Conventional thermal","Conventional thermal","2026M07",null,0]
["NELEPROD","COAL",null,null,null,null,null,null,"Coal","Coal","2026M07",null,0]
["NELEPROD","OIL",null,null,null,null,null,null,"Oil","Oil","2026M07",null,0]
["NELEPROD","NATGAS",null,null,null,null,null,null,"Natural gas","Natural gas","2026M07",null,0]
["NELEPROD","COMBREN",null,null,null,null,null,null,"Combustible renewables","Combustible renewables","2026M07",null,0]
["NELEPROD","COMBNREN",null,null,null,null,null,null,"Other combustible fuels (non-renewable)","Other combustible fuels (non-renewable)","2026M07",null,0]
["NELEPROD","HYDRO",null,null,null,null,null,null,"Hydro","Hydro","2026M07",null,0]
["NELEPROD","HYDPURE",null,null,null,null,null,null,"Pure hydro","Pure hydro","2026M07",null,0]
["NELEPROD","HYDMIXED",null,null,null,null,null,null,"Mixed hydro","Mixed hydro","2026M07",null,0]
["NELEPROD","HYDPUMP",null,null,null,null,null,null,"Pure pumped storage","Pure pumped storage","2026M07",null,0]
["NELEPROD","WIND",null,null,null,null,null,null,"Wind","Wind","2026M07",null,0]
["NELEPROD","WINDON",null,null,null,null,null,null,"Onshore","Onshore",{"$f":"YEAR(DATE(LEFT($B$4,4),RIGHT($B$4,2)-M333,1)) & \"M\" & TEXT(MONTH(DATE(LEFT($B$4,4),RIGHT($B$4,2)-M333,1)),\"00\")","v":"2026M07"},null,0]
["NELEPROD","WINDOFF",null,null,null,null,null,null,"Offshore","Offshore","2026M07",null,0]
["NELEPROD","SOLAR",null,null,null,null,null,null,"Solar","Solar","2026M07",null,0]
["NELEPROD","SOLARPV",null,null,null,null,null,null,"Solar photovoltaic","Solar photovoltaic","2026M07",null,0]
["NELEPROD","SOLARTH",null,null,null,null,null,null,"Solar thermal","Solar thermal","2026M07",null,0]
["NELEPROD","GEOTHERM",null,null,null,null,null,null,"Geothermal","Geothermal","2026M07",null,0]
["NELEPROD","OTHERREN",null,null,null,null,null,null,"Other renewable sources","Other renewable sources","2026M07",null,0]
["NELEPROD","NONSPEC",null,null,null,null,null,null,"Not specified","Not specified","2026M07",null,0]
["TOTIMPSB","ELECTR",null,null,null,null,null,null,"Imports","Imports","2026M07",null,0]
["TOTEUIMPS","ELECTR",null,null,null,null,null,null,"Of which from the EU","Of which from the EU","2026M07",null,0]
["TOTEXPSB","ELECTR",null,null,null,null,null,null,"Exports","Exports","2026M07",null,0]
["TOTEUEXPS","ELECTR",null,null,null,null,null,null,"Of which to the EU","Of which to the EU","2026M07",null,0]
["EPUMPST","ELECTR",null,null,null,null,null,null,"Used for pumped storage","Used for pumped storage","2026M07",null,0]
["DISTLOSS","ELECTR",null,null,null,null,null,null,"Transmission and distribution losses","Transmission and distribution losses","2026M07",null,0]
["TFCCALC","ELECTR",null,null,null,null,null,null,"Total consumption (calculated)","Total consumption (calculated)","2026M07",null,0]
[]
[]
[null,"Sum of Value","Column Labels"]
[null,"Row Labels","Coal","Combustible renewables","Conventional thermal","Exports","Geothermal","Hydro","Imports","Mixed hydro","Natural gas","Not specified","Nuclear","Offshore","Oil","Onshore","Other combustible fuels (non-renewable)","Other renewable sources","Pure hydro","Pure pumped storage","Solar","Solar photovoltaic","Solar thermal","Total consumption (calculated)","Total net production","Transmission and distribution losses","Used for pumped storage","Wind","Of which from the EU","Of which to the EU"]
[null,"2022M02"]
[null,"2022M03"]
[null,"2022M04"]
[null,"2022M05"]
[null,"2022M06"]
[null,"2022M07"]
[null,"2022M08"]
[null,"2022M09"]
[null,"2022M10"]
[null,"2022M11"]
[null,"2022M12"]
[null,"2023M01"]

{"sheet":"Param_Sheets","index":27,"n_rows":8,"n_cols":14,"rows_kept":8,"cut":false,"hidden":true,"merged":[]}
["Name","Template_Sheet","Version","Datatype","Product","Item1","Item2","Time","Protect",null,null,null,"Refresh Formula","Name"]
[{"$f":"\"TS1and2_\"&C2","v":"TS1and2_2024"},"TemplateTS1to2",{"$f":"Param_Menu!A8","v":2024},"BALANCE","Template","Template",null,"Template",1,null,null,null,null,{"$f":"A2","v":"TS1and2_2024"}]
[{"$f":"\"TS1and2_\"&C3","v":"TS1and2_2025"},"TemplateTS1to2",{"$f":"C2+1","v":2025},"BALANCE","Template","Template",null,"Template",1,null,null,null,null,{"$f":"A3","v":"TS1and2_2025"}]
[{"$f":"\"TS1and2_\"&C4","v":"TS1and2_2026"},"TemplateTS1to2",{"$f":"C3+1","v":2026},"BALANCE","Template","Template",null,"Template",1,null,null,null,null,{"$f":"A4","v":"TS1and2_2026"}]
["Graphs","TemplateGraphs",{"$f":"Menu!G21","v":"2026M01"},"BALANCE","Template","Template",null,"Template",3]
[{"$f":"\"REMARKS_\"&C6","v":"REMARKS_2024"},"TemplateRemarks",{"$f":"C2","v":2024},"REMARKS",null,"Template",null,"Template",1]
[{"$f":"\"REMARKS_\"&C7","v":"REMARKS_2025"},"TemplateRemarks",{"$f":"C6+1","v":2025},"REMARKS",null,"Template",null,"Template",1]
[{"$f":"\"REMARKS_\"&C8","v":"REMARKS_2026"},"TemplateRemarks",{"$f":"C7+1","v":2026},"REMARKS",null,"Template",null,"Template",1]

{"sheet":"Param_Sheets_Templates","index":28,"n_rows":6,"n_cols":4,"rows_kept":6,"cut":false,"hidden":true,"merged":[]}
["Name","TemplateTS1to2","TemplateRemarks","TemplateGraphs"]
["Format","TimeSeries","TimeSeries","TimeSeries"]
["VersionRow",4,4,4]
["VersionCol",2,2,2]
["HideCol","A:H","A:C","A:M"]
["HideRow","2:6","4:5","2:9"]

{"sheet":"Param_Tables","index":29,"n_rows":11,"n_cols":9,"rows_kept":11,"cut":false,"hidden":true,"merged":[]}
["Name","SheetName","Template","Version","Datatype","Product","Item1","Item2","Time"]
[{"$f":"\"TS1_\" & D2","v":"TS1_2024"},{"$f":"\"TS1and2_\"&D2","v":"TS1and2_2024"},"TemplateTS1",{"$f":"Param_Menu!A8","v":2024},"BALANCE","Template","NELEPROD",null,"Template"]
[{"$f":"\"TS1_\" & D3","v":"TS1_2025"},"TS1and2_2025","TemplateTS1",{"$f":"D2+1","v":2025},"BALANCE","Template","NELEPROD",null,"Template"]
[{"$f":"\"TS1_\" & D4","v":"TS1_2026"},"TS1and2_2026","TemplateTS1",{"$f":"D2+2","v":2026},"BALANCE","Template","NELEPROD",null,"Template"]
[{"$f":"\"TS2_\" & D5","v":"TS2_2024"},"TS1and2_2024","TemplateTS2",{"$f":"Param_Menu!A11","v":2024},"BALANCE","ELECTR","Template",null,"Template"]
[{"$f":"\"TS2_\" & D6","v":"TS2_2025"},"TS1and2_2025","TemplateTS2",{"$f":"D5+1","v":2025},"BALANCE","ELECTR","Template",null,"Template"]
[{"$f":"\"TS2_\" & D7","v":"TS2_2026"},"TS1and2_2026","TemplateTS2",{"$f":"D5+2","v":2026},"BALANCE","ELECTR","Template",null,"Template"]
["Graphs","Graphs","TemplateGraphs",{"$f":"Menu!G21","v":"2026M01"},"BALANCE","Template","Template",null,"Template"]
["REMARKS",{"$f":"\"REMARKS_\"&D9","v":"REMARKS_2024"},"TemplateRemarks",{"$f":"Param_Menu!A15","v":2024},"REMARKS",null,"Template",null,"Template"]
["REMARKS",{"$f":"\"REMARKS_\"&D10","v":"REMARKS_2025"},"TemplateRemarks",{"$f":"D9+1","v":2025},"REMARKS",null,"Template",null,"Template"]
["REMARKS",{"$f":"\"REMARKS_\"&D11","v":"REMARKS_2026"},"TemplateRemarks",{"$f":"D9+2","v":2026},"REMARKS",null,"Template",null,"Template"]

{"sheet":"Param_Tables_Templates","index":30,"n_rows":45,"n_cols":5,"rows_kept":45,"cut":false,"hidden":true,"merged":[]}
["Name","TemplateTS1","TemplateTS2","TemplateGraphs","TemplateRemarks"]
["SheetName","TemplateTS1to2","TemplateTS1to2","TemplateGraphs","TemplateRemarks"]
["Format","TimeSeries","TimeSeries","OneYear","TimeSeries"]
["VersionRow",4,4,4,4]
["VersionCol",2,2,2,2]
["FirstRow",13,36,12,8]
["FirstCol",11,11,12,5]
["LastRow",33,43,347,35]
["LastCol",22,22,12,16]
["DataTypeRow",2,2,2,2]
["DataTypeCol",2,2,2,2]
["ProductRow",0,0,0,3]
["ProductCol",2,2,2,2]
["Item1Row",0,0,0,0]
["Item1Col",1,1,1,1]
["Item2Row",3,3,3,5]
["Item2Col",2,2,2,2]
["TimeRow",3,3,0,6]
["TimeCol",0,0,11,0]
["FormulaRow",4,4,4]
["FormulaCol",3,3,3]
["CheckCol1",4,4,4]
["CheckCol2"]
["CheckCol3"]
["CheckRow",5,5,5]
["LabelCheckCol1",5,5,5]
["LabelCheckCol2"]
["LabelCheckCol3"]
["LabelCheckRow"]
["LockedRow",6,6,6]
["LockedCol",6,6,6]
["EmptyRow",7,7,7]
["EmptyCol",7,7,7]
["VoluntaryRow",8,8,8]
["VoluntaryCol",8,8,8]
["LabelRow",11,11,11,6]
["LabelCol",10,10,10,4]
["HideCol","A:I","A:I"]
["HideRow","2:8","2:8","2000:3000"]
["TableSourceCol"]
["TableSourceRow"]
["NbDecimalRow"]
["NbDecimalCol"]
["TypeRow",null,null,null,4]
["TypeCol"]